Workbook

Sheet Per Style
D1: =SUBTOTAL(9,D3:D5000) -> 19948 | F1: =SUBTOTAL(9,F3:F5000) -> 2401080.9
A2: Style | B2: Qlt | C2: Colour | D2: Pcs | E2: RRP (EUR) | F2: Total RRP | G2: FIT
A3: 3301 SKINNY WMN | B3: COMFORT CORAL TWILL OD | C3: LT AUBURN | D3: 75 | E3: 119.9 | F3: =E3*D3 -> 8992.5
A4: 3301 90'S TAPERED WMN | B4: SCATTER DENIM | C4: MED AGED SP | D4: 3 | E4: 119.95 | F4: =E4*D4 -> 359.85 | G4: Boyfriend
A5: 3301 A LOW SUPER SKINNY WMN | B5: BRANTLEY STRETCH DENIM | C5: MED AGED | D5: 19 | E5: 99.95 | F5: 1899.05 | G5: Skinny
A6: 3301 A LOW SUPER SKINNY WMN | B6: LT WT RYDELL DENIM | C6: MED AGED | D6: 5 | E6: 99.95 | F6: 499.75 | G6: Skinny
A7: 3301 A LOW SUPER SKINNY WMN | B7: DISTRO SUPERSTRETCH | C7: RIDSED | D7: 1 | E7: 99.95 | F7: 99.95 | G7: Skinny
A8: 3301 BELL CUT WMN | B8: COMFORT PONTE DENIM | C8: TRACK WASH | D8: 4 | E8: 99.9 | F8: 399.6 | G8: Boot
A9: 3301 BELL CUT WMN | B9: COMFORT PONTE WMN | C9: TRACK WASH | D9: 2 | E9: 99.9 | F9: 199.8 | G9: Boot
A10: 3301 BELL CUTT WMN | B10: COMFORT PONTE DENIM | C10: TRACK WASH | D10: 1 | E10: 99.9 | F10: 99.9 | G10: Boot
A11: 3301 BELLCUT CHINO WMN | B11: COMFORT MAVER DENIM | C11: 3D VINTAGE | D11: 1 | E11: 129.9 | F11: 129.9 | G11: Boot
A12: 3301 BELLCUT CHINO WMN | B12: COMFORT ASTON DENIM | C12: LT AGED | D12: 1 | E12: 129.9 | F12: 129.9 | G12: Boot
A13: 3301 BELLCUT CHINO WMN | B13: HARVARD TWILL | C13: BLACK | D13: 1 | E13: 129.9 | F13: 129.9 | G13: Boot
A14: 3301 BELLCUT WMN | B14: COMFORT PONTE DENIM | C14: TRACK WASH | D14: 1 | E14: 99.9 | F14: 99.9 | G14: Boot
A15: 3301 BELLCUT WMN | B15: COMFORT ROAD DENIM | C15: TRACK WORN IN | D15: 1 | E15: 99.9 | F15: 99.9 | G15: Boot
A16: 3301 BELLCUT WMN | B16: STAGER DENIM | C16: VINTAGE DESTROY | D16: 1 | E16: 99.9 | F16: 99.9 | G16: Boot
A17: 3301 BELLCUT WMN | B17: COMFORT ASPEN DENIM | C17: DARK AGED | D17: 1 | E17: 99.9 | F17: 99.9 | G17: Boot
A18: 3301 BELLCUT WMN | B18: COMFORT DEEPTONE DENIM | C18: RAW | D18: 1 | E18: 99.9 | F18: 99.9 | G18: Boot
A19: 3301 BOOLTEG WMN | B19: COMFORT GRAFFIT DENIM | C19: DARK AGED | D19: 1 | E19: 119.9 | F19: 119.9 | G19: Boot
A20: 3301 BOOTLEG WMN | B20: COMFORT SKART DENIM | C20: DARK AGED | D20: 1 | E20: 119.9 | F20: 119.9 | G20: Boot
A21: 3301 BOOTLEG WMN | B21: COMFORT BAKER DENIM | C21: RAW | D21: 1 | E21: 119.9 | F21: 119.9 | G21: Boot
A22: 3301 BOOTLEG WMN | B22: ITO SUPERSTRETCH | C22: RAW | D22: 2 | E22: 119.9 | F22: 239.8 | G22: Boot
A23: 3301 BOOTLEG WMN | B23: LTO SUPER STRETCH | C23: RAW DENIM | D23: 1 | E23: 119.9 | F23: 119.9 | G23: Boot
A24: 3301 BOOTLEG WMN | B24: COMFORT D.I.DENIM | C24: RUGBY WASH | D24: 2 | E24: 119.9 | F24: 239.8 | G24: Boot
A25: 3301 BOOTLEG WMN | B25: COMFORT GRAFFIT DENIM | C25: DARK AGED | D25: 2 | E25: 119.9 | F25: 239.8 | G25: Boot
A26: 3301 BOOTLEG WMN | B26: COMFORT ARCTIC DENIM | C26: TUMBLE RAW | D26: 2 | E26: 119.9 | F26: 239.8 | G26: Boot
A27: 3301 BOOTLEG WMN | B27: GLAZE SUPER STRETCH | C27: DARK AGED | D27: 2 | E27: 119.9 | F27: 239.8 | G27: Boot
A28: 3301 CHINO LOOSE TAPERED COJ WMN | B28: COMFORT ULTRA TWILL | C28: DARK PAPER BROWN | D28: 1 | E28: 119.9 | F28: 119.9
A29: 3301 CHINO WMN STRAIGHT | B29: COMFORT CARE DENIM | C29: RAW | D29: 1 | E29: 119.9 | F29: 119.9 | G29: Straight
A30: 3301 COMFORT SKINNY WMN | B30: ULTIMATE STRETCH CELLO | C30: VINTAGE AGED COBLER | D30: 2 | E30: 139.9 | F30: 279.8 | G30: Slim
A31: 3301 COMFORT SKINNY WMN | B31: SLANDER BLACK SUPER STRETCH | C31: DARK AGED | D31: 2 | E31: 99.95 | F31: 199.9 | G31: Skinny
A32: 3301 CONTOUR BELL WMN | B32: ULTIMATE STRETCH | C32: SLANDER WHITE | D32: 7 | E32: 129.9 | F32: 909.3
A33: 3301 CONTOUR HIGH SKINNY WMN | B33: SLANDER BLACK SUPERSTRETCH | C33: DK AGED | D33: 30 | E33: 119.95 | F33: 3598.5 | G33: Skinny
A34: 3301 CONTOUR HIGH SKINNY WMN | B34: NIPPON SUPERSTRETCH | C34: MED AGED | D34: 69 | E34: 119.95 | F34: 8276.55 | G34: Skinny
A35: 3301 CONTOUR HIGH SKINNY WMN | B35: BENWICK STRETCH DENIM | C35: DARK AGED | D35: 2 | E35: 119.95 | F35: 239.9 | G35: Skinny
A36: 3301 CONTOUR HIGH SKINNY WMN | B36: VISOR STRETCH DENIM | C36: DARK AGED | D36: 22 | E36: 119.95 | F36: 2638.9 | G36: Skinny
A37: 3301 CONTOUR HIGH SKINNY WMN | B37: SLANDER SUPER STRETCH | C37: DARK AGED | D37: 9 | E37: 119.95 | F37: 1079.55 | G37: Skinny
A38: 3301 CONTOUR HIGH SKINNY WMN | B38: FRAKTO SUPER STRETCH | C38: MED AGED | D38: 3 | E38: 119.95 | F38: 359.85 | G38: Skinny
A39: 3301 CONTOUR HIGH SKINNY WMN | B39: HYTO BLACK SUPER STRETCH | C39: COBLER DIP WASH | D39: 17 | E39: 119.95 | F39: 2039.15 | G39: Skinny
A40: 3301 CONTOUR HIGH SKINNY WMN | B40: HABB WHITE SUPER STRETCH | C40: 3D RINSED | D40: 1 | E40: 119.95 | F40: 119.95 | G40: Skinny
A41: 3301 CONTOUR HIGH SKINNY WMN | B41: HYTO BLACK SUPER STRETCH | C41: COBLER DIP WASH | D41: 29 | E41: 119.95 | F41: 3478.55 | G41: Skinny
A42: 3301 CONTOUR HIGH SKINNY WMN | B42: SCAAL GREY SUPER STRETCH | C42: DARK AGED | D42: 8 | E42: 119.95 | F42: 959.6 | G42: Skinny
A43: 3301 CONTOUR HIGH SKINNY WMN | B43: LOXTON SUPER STRETCH | C43: RINSED | D43: 1 | E43: 119.95 | F43: 119.95 | G43: Skinny
A44: 3301 CONTOUR HIGH SKINNY WMN | B44: COMFORT LINET DENIM | C44: LT AGED DESTORY | D44: 1 | E44: 119.95 | F44: 119.95 | G44: Skinny
A45: 3301 CONTOUR HIGH SKINNY WMN | B45: COMFORT INOX DENIM | C45: DARK AGED | D45: 12 | E45: 119.95 | F45: 1439.4 | G45: Skinny
A46: 3301 CONTOUR HIGH SKINNY WMN | B46: SCALL GREY SUPER STRETCH | C46: DARK AGED | D46: 2 | E46: 119.95 | F46: 239.9 | G46: Skinny
A47: 3301 CONTOUR HIGH SKINNY WMN | B47: OZMO SUPER STRETCH | C47: DARK AGED | D47: 1 | E47: 119.95 | F47: 119.95 | G47: Skinny
A48: 3301 CONTOUR HIGH SKINNY WMN | B48: SCAAL GREY SUPERSTTETCH | C48: DARK AGED | D48: 4 | E48: 119.95 | F48: 479.8 | G48: Skinny
A49: 3301 CONTOUR HIGH SKINNY WMN | B49: HYTO BLACK SUPERSRETCH | C49: COBLER DIP WASH | D49: 1 | E49: 119.95 | F49: 119.95 | G49: Skinny
A50: 3301 CONTOUR HIGH SKINNY WMN | B50: SCAAL GREY SPRSTRTCH | C50: DARK AGED | D50: 1 | E50: 119.95 | F50: 119.95 | G50: Skinny
A51: 3301 CONTOUR HIGH STRAIGHT WMN | B51: NEUTRO STRETCH DENIM | C51: DARK AGED | D51: 3 | E51: 99.95 | F51: 299.85 | G51: Straight
A52: 3301 CONTOUR HIGH STRAIGHT WMN | B52: BIONIC SLANDER SUPER STRETCH | C52: MED AGED | D52: 1 | E52: 99.95 | F52: 99.95 | G52: Straight
A53: 3301 CONTOUR HIGH STRAIGHT WMN | B53: HYTO BLACK SUPER STRETCH | C53: COBLER DIP WASH | D53: 67 | E53: 99.95 | F53: 6696.65 | G53: Straight
A54: 3301 CONTOUR HIGH STRAIGHT WMN | B54: BRANTLEY STRETCH DENIM | C54: MED AGED | D54: 33 | E54: 99.95 | F54: 3298.35 | G54: Straight
A55: 3301 CONTOUR HIGH STRAIGHT WMN | B55: NOUTRO STRETCH DENIM | C55: DARK AGED | D55: 25 | E55: 99.95 | F55: 2498.75 | G55: Straight
A56: 3301 CONTOUR HIGH STRAIGHT WMN | B56: BENWICK STRETCH DENIM | C56: DARK AGED | D56: 3 | E56: 99.95 | F56: 299.85 | G56: Straight
A57: 3301 CONTOUR HIGH STRAIGHT WMN | B57: BIONIC SLANDER SUPER STRETCH | C57: MED AGED | D57: 6 | E57: 99.95 | F57: 599.7 | G57: Straight
A58: 3301 CONTOUR HIGH STRAIGHT WMN | B58: NIPPON SUPER STRETCH | C58: DARK AGED | D58: 14 | E58: 99.95 | F58: 1399.3 | G58: Straight
A59: 3301 CONTOUR HIGH STRAIGHT WMN | B59: NEUTRO STRTCH DENIM | C59: DARK AGED | D59: 1 | E59: 99.95 | F59: 99.95 | G59: Straight
A60: 3301 CONTOUR HIGH STRAIGHT WMN | B60: VISOR STRETCH DENIM | C60: DARK AGED | D60: 8 | E60: 99.95 | F60: 799.6 | G60: Straight
A61: 3301 CONTOUR HIGH STRAIGHT WMN | B61: NIOPPON SUPER STRETCH | C61: DARK AGED | D61: 2 | E61: 99.95 | F61: 199.9 | G61: Straight
A62: 3301 CONTOUR HIGH STRAIGHT WMN | B62: HYTO BLACK SUPERSRETCH | C62: COBLER DIP WASH | D62: 2 | E62: 99.95 | F62: 199.9 | G62: Straight
A63: 3301 CONTOUR HIGH SUPER SKINNY WMN | B63: FRAKTO SUPER STRETCH | C63: MED AGED | D63: 2 | E63: 99.95 | F63: 199.9 | G63: Skinny
A64: 3301 CONTOUR HIGH SUPER SKINNY WMN | B64: NEUTRO STRETCH DENIM | C64: DARK AGED | D64: 3 | E64: 99.95 | F64: 299.85 | G64: Skinny
A65: 3301 CONTOUR HIGH SUPERSKINNY WMN | B65: NEUTRO STRETCH DENIM | C65: DARK AGED | D65: 3 | E65: 99.95 | F65: 299.85 | G65: Slim
A66: 3301 CONTOUR SKINNY WMN | B66: IVIE SUPER STRETCH | C66: MED AGED | D66: 1 | E66: 99.9 | F66: 99.9 | G66: Skinny
A67: 3301 CONTOUR SKINNY WMN | B67: FRAKTO SUPER STRETCH | C67: MED AGED | D67: 4 | E67: 99.9 | F67: 399.6 | G67: Skinny
A68: 3301 CONTOUR SKINNY WMN | B68: COMFORT BLACK EDINGTON DENIM | C68: 3D RAW | D68: 20 | E68: 99.9 | F68: =E68*D68 -> 1998 | G68: Skinny
A69: 3301 CONTOUR SKINNY WMN | B69: POWERSTRETCH BLACK TILEX | C69: RAW | D69: 6 | E69: 99.9 | F69: 599.4 | G69: Skinny
A70: 3301 CONTOUR SKINNY WMN | B70: POWERSTRETCH TILEX BLACK | C70: RAW | D70: 5 | E70: 99.9 | F70: 499.5 | G70: Skinny
A71: 3301 CONTOUR SKINNY WMN | B71: COMFORT BLACK EDINGTON | C71: 3D RAW | D71: 22 | E71: 99.9 | F71: 2197.8 | G71: Skinny
A72: 3301 CONTOUR SKINNY WMN | B72: GLAZE SUPER STRETCH | C72: DARK AGED | D72: 2 | E72: 99.9 | F72: 199.8 | G72: Skinny
A73: 3301 CONTOUR SKINNY WMN | B73: ULTIMATE STRETCH SLANDER WHITE | C73: LT AGED | D73: 24 | E73: 99.9 | F73: 2397.6 | G73: Skinny
A74: 3301 CONTOUR SKINNY WMN | B74: L SUPER STRETCH | C74: MED AGED | D74: 1 | E74: 99.9 | F74: 99.9 | G74: Skinny
A75: 3301 CONTOUR SKINNY WMN | B75: L SUPER STRETCH | C75: DARK AGED | D75: 2 | E75: 99.9 | F75: 199.8 | G75: Skinny
A76: 3301 CONTOUR SKINNY WMN | B76: BRONX SUPER STRETCH TWILL OD | C76: DARK CARRIBEAN | D76: 20 | E76: 99.9 | F76: 1998 | G76: Skinny
A77: 3301 CONTOUR SKINNY WMN | B77: MIRROR TWILL SPERSTRETCH | C77: BRIGHT OXBLOOD | D77: 5 | E77: 99.9 | F77: 499.5 | G77: Skinny
A78: 3301 CONTOUR SKINNY WMN | B78: MIRROR TWILL SUPER STRETCH | C78: MAJESTIC | D78: 2 | E78: 99.9 | F78: 199.8 | G78: Skinny
A79: 3301 CONTOUR SKINNY WMN | B79: COMFORT RIDER DENIM | C79: MED AGED | D79: 4 | E79: 99.9 | F79: 399.6 | G79: Skinny
A80: 3301 CONTOUR SKINNY WMN | B80: SUPER STRETCH TWILL OD | C80: DARK CARRIBEAN | D80: 8 | E80: 99.9 | F80: 799.2 | G80: Skinny
A81: 3301 CONTOUR SKINNY WMN | B81: COMFORT DIXON DENIM | C81: DARK AGED | D81: 5 | E81: 99.9 | F81: 499.5 | G81: Skinny
A82: 3301 CONTOUR SKINNY WMN | B82: ARVICK SUPER STRETCH | C82: LT AGED | D82: 1 | E82: 99.9 | F82: 99.9 | G82: Skinny
A83: 3301 CONTOUR SKINNY WMN | B83: GLAC SUPER STRETCH | C83: DARK COBLER | D83: 1 | E83: 99.9 | F83: 99.9 | G83: Skinny
A84: 3301 CONTOUR SKINNY WMN | B84: MINE SUPER STRETCH | C84: MED AGED | D84: 5 | E84: 99.9 | F84: 499.5 | G84: Skinny
A85: 3301 CONTOUR SKINNY WMN | B85: COMFORT SKART DENIM | C85: DARK AGED | D85: 1 | E85: 99.9 | F85: 99.9 | G85: Skinny
A86: 3301 CONTOUR SKINNY WMN | B86: SLANDER BLUE SUPER STRETCH | C86: MED AGED | D86: 2 | E86: 99.9 | F86: 199.8 | G86: Skinny
A87: 3301 CONTOUR SKINNY WMN | B87: L.SUPER STRETCH | C87: MED AGED | D87: 1 | E87: 99.9 | F87: 99.9 | G87: Skinny
A88: 3301 CONTOUR SKINNY WMN | B88: NEW COMFORT MIRROR TWILL | C88: DARK PRINCE | D88: 2 | E88: 99.9 | F88: 199.8 | G88: Skinny
A89: 3301 CONTOUR SKINNY WMN | B89: L. SUPER STRETCH | C89: MED AGED | D89: 6 | E89: 99.9 | F89: 599.4 | G89: Skinny
A90: 3301 CONTOUR SKINNY WMN | B90: MIRROR TWILL SUPER STRETCH | C90: MAZARINE BLUE | D90: 11 | E90: 99.9 | F90: 1098.9 | G90: Skinny
A91: 3301 CONTOUR SKINNY WMN | B91: COMFORT BLACK VALL DENIM | C91: RAW | D91: 10 | E91: 99.9 | F91: 999 | G91: Skinny
A92: 3301 CONTOUR SKINNY WMN | B92: COM BLACK VELI DENIM | C92: RAW | D92: 18 | E92: 99.9 | F92: 1798.2 | G92: Skinny
A93: 3301 CONTOUR SKINNY WMN | B93: L. SUPER STRETCH | C93: DARK AGED | D93: 6 | E93: 99.9 | F93: 599.4 | G93: Skinny
A94: 3301 CONTOUR SKINNY WMN | B94: COMFORT FINT DENIM | C94: DARK AGED | D94: 2 | E94: 99.9 | F94: 199.8 | G94: Skinny
A95: 3301 CONTOUR SKINNY WMN | B95: GLAZE SUPERSTRESTCH | C95: DARK AGED | D95: 1 | E95: 99.9 | F95: 99.9 | G95: Skinny
A96: 3301 CONTOUR SKINNY WMN | B96: BLOSSOM SUPER STRETCH | C96: MED AGED | D96: 2 | E96: 99.9 | F96: 199.8 | G96: Skinny
A97: 3301 CONTOUR SKINNY WMN | B97: UTTIMATESTRETCH PIN | C97: MED AGED | D97: 1 | E97: 99.9 | F97: 99.9 | G97: Skinny
A98: 3301 CONTOUR SKINNY WMN | B98: SLANDER BLACK SUPER STRETCH | C98: DARK AGED | D98: 27 | E98: 99.9 | F98: 2697.3 | G98: Skinny
A99: 3301 CONTOUR SKINNY WMN | B99: BLOSSOM BLACK SUPER STRETCH | C99: RINSED | D99: 10 | E99: 99.9 | F99: 999 | G99: Skinny
A100: 3301 CONTOUR SKINNY WMN | C100: BRIGHT OXBLOOD | D100: 3 | E100: 99.9 | F100: 299.7 | G100: Skinny
A101: 3301 CONTOUR SKINNY WMN | B101: MIRROR TWILL SUPER STRETCH | C101: BRIGHT OXBLOOD | D101: 4 | E101: 99.9 | F101: 399.6 | G101: Skinny
A102: 3301 CONTOUR SKINNY WMN | B102: COMFORT INOX DENIM | C102: DARK AGED | D102: 1 | E102: 99.9 | F102: 99.9 | G102: Skinny
A103: 3301 CONTOUR SKINNY WMN | B103: BLOSSOM SUPER STRETCH | C103: MED AGED DESTROY | D103: 5 | E103: 99.9 | F103: 499.5 | G103: Skinny
A104: 3301 CONTOUR SKINNY WMN | B104: SLANDER SUPER STRETCH | C104: DARK AGED | D104: 1 | E104: 99.9 | F104: 99.9 | G104: Skinny
A105: 3301 CONTOUR SKINNY WMN | B105: FRAKTO SUPER STRETCH | C105: MED AGED | D105: 1 | E105: 99.9 | F105: 99.9 | G105: Skinny
A106: 3301 CONTOUR SKINNY WMN | B106: COMFORT BAKER DENIM | C106: RAW | D106: 3 | E106: 99.9 | F106: 299.7 | G106: Skinny
A107: 3301 CONTOURE HIGH SKINNY WMN | B107: BENWICK STRETCH DENIM | C107: DARK AGED | D107: 1 | E107: 99.95 | F107: 99.95 | G107: Skinny
A108: 3301 CONTOURSKINNY WMN | B108: ULTIMATE STRETCH PIN | C108: MED AGED | D108: 1 | E108: 169.9 | F108: 169.9 | G108: Slim
A109: 3301 CONTOUT HIGH SKINNY WMN | B109: SLANDER BLACK SUPER STRETCH | C109: DARK AGED | D109: 7 | E109: 119.95 | F109: 839.65 | G109: Skinny
A110: 3301 CONTR SKIN | B110: 6129 | C110: DARK AGED | D110: 1 | E110: 129.9 | F110: 129.9 | G110: Straight
A111: 3301 COTOUR SKINNY WMN | B111: MIRROR TWILL SUPER STRETCH | C111: MAJESTIC | D111: 1 | E111: 119.9 | F111: 119.9
A112: 3301 CTR HG | B112: 6553 | C112: DARK AGED | D112: 1 | E112: 99.95 | F112: 99.95 | G112: Straight
A113: 3301 DECO LOW SUPER SKINNY WMN | B113: VISOR STRETCH DENIM | C113: RAW | D113: 1 | E113: 89.95 | F113: 89.95 | G113: Skinny
A114: 3301 DECONST LOW SUP | B114: WHITE TALC SUPER STRETCH | C114: 3D AGED | D114: 1 | E114: 129.95 | F114: 129.95 | G114: Skinny
A115: 3301 DECONST LOW SUP | B115: WHITE TALC SUPER STRETCH | C115: 3D AGED | D115: 1 | E115: 129.95 | F115: 129.95 | G115: Skinny
A116: 3301 DECONST LOW SUPER SKINNY | B116: HABB WHITE SUPER STRETCH | C116: 3D AGED | D116: 9 | E116: 129.95 | F116: 1169.55 | G116: Skinny
A117: 3301 DECONST LOW SUPER SKINNY WMN | B117: WHITE TALC SUPER STRETCH | C117: 3D AGED | D117: 5 | E117: 129.95 | F117: 649.75 | G117: Skinny
A118: 3301 DECONST LOW SUPER SKINNY WMN | B118: VISOR STRETCH DENIM | C118: RAW | D118: 3 | E118: 129.95 | F118: 389.85 | G118: Skinny
A119: 3301 DECONST LOW SUPER SKINNY WMN | B119: CILEX BLACK SUPER STRETCH | C119: RAW | D119: 1 | E119: 129.95 | F119: 129.95 | G119: Skinny
A120: 3301 DECONST LOW SUPER SKINNY WMN | B120: 4923 | C120: 3D AGED | D120: 2 | E120: 129.95 | F120: 259.9 | G120: Skinny
A121: 3301 DECONST ULTRA HIGH | B121: 6960 | C121: RINSED | D121: 2 | E121: 89.95 | F121: 179.9 | G121: Skinny
A122: 3301 DECONST ULTRA HIGH | B122: WHITE TALC SUPER STRETCH | C122: WHITE | D122: 1 | E122: 89.95 | F122: 89.95 | G122: Skinny
A123: 3301 DECONST ULTRA HIGH SKINNY WMN | C123: 3D AGED | D123: 3 | E123: 129.95 | F123: 389.85 | G123: Skinny
A124: 3301 DECONST ULTRA HIGH SKINNY WMN | B124: CILEX BLACK SUPER STRETCH | C124: RAW | D124: 1 | E124: 129.95 | F124: 129.95 | G124: Skinny
A125: 3301 DECONST ULTRA HIGH SUPER SKINNY | B125: CILEX BLACK SUPER STRETCH | C125: RINSED | D125: 3 | E125: 89.95 | F125: 269.85 | G125: Skinny
A126: 3301 DECONST ULTRA HIGH SUPER SKINNY WMN | B126: CILEX BLACK SUPER STRETCH | C126: RINSED | D126: 2 | E126: 89.95 | F126: 179.9 | G126: Skinny
A127: 3301 DECONST ULTRA HIGH SUPER SKINNY WMN | B127: WHITE TALC SUPER STRETCH | C127: 3D AGED | D127: 1 | E127: 89.95 | F127: 89.95 | G127: Skinny
A128: 3301 DECONST ULTRA HIGHT SUPER SKINNY WMN | B128: CILEX BLACK SUPER STRETCH | C128: RINSED | D128: 2 | E128: 89.95 | F128: 179.9 | G128: Skinny
A129: 3301 DECONST ULTRA SUPER HKINNY WMN | B129: CILEX BLACK SUPER STRETCH | C129: RINSED | D129: 1 | E129: 89.95 | F129: 89.95 | G129: Skinny
A130: 3301 ELEGANT LOOSE WMN | B130: COMFORT WELDON DENIM | C130: MED AGED | D130: 22 | E130: 129.9 | F130: 2857.8 | G130: Loose
A131: 3301 HIGH FLARE WMN | B131: AIDEN STRETCH DENIM | C131: LT AGED | D131: 20 | E131: 119.95 | F131: 2399 | G131: Boot
A132: 3301 HIGH FLARE WMN | B132: HARDON STRETCH DENIM | C132: MED AGED ANTIC RESTORED 84 | D132: 7 | E132: 119.95 | F132: =E132*D132 -> 839.65 | G132: Boot
A133: 3301 HIGH FLARE WMN | B133: HADRO N STRETCH DENIM | C133: MED AGED ANTIC | D133: 2 | E133: 119.95 | F133: 239.9 | G133: Boot
A134: 3301 HIGH SKIINY WMN | B134: NIPPON SUPRSTRETCH | C134: MED AGED | D134: 22 | E134: 129.95 | F134: 2858.9 | G134: Skinny
A135: 3301 HIGH SKIINY WMN | B135: SLANDER SUPER STRETCH | C135: DARK AGED | D135: 1 | E135: 129.95 | F135: 129.95 | G135: Skinny
A136: 3301 HIGH SKINNY WMN | B136: FRAKTO SUPER STRETCH | C136: MED AGED | D136: 1 | E136: 119.95 | F136: 119.95 | G136: Skinny
A137: 3301 HIGH SKINNY WMN | B137: SLANDER BLACK SUPER STRETCH | C137: DARK AGED COBLER | D137: 1 | E137: 119.95 | F137: 119.95 | G137: Skinny
A138: 3301 HIGH SKINNY WMN | B138: TOWI BLACK STRETCH DENIM | C138: MED AGED RESTORED 97 | D138: 154 | E138: 119.95 | F138: 18472.3 | G138: Skinny
A139: 3301 HIGH SKINNY WMN | B139: SLANDER BLACK SUPER STRETCH | C139: DK AGED | D139: 4 | E139: 119.95 | F139: 479.8 | G139: Skinny
A140: 3301 HIGH SKINNY WMN | B140: SLANDER BLACK SUPERSTRETCH | C140: DK AGED | D140: 38 | E140: 119.95 | F140: 4558.1 | G140: Skinny
A141: 3301 HIGH SKINNY WMN | B141: NIPPON SUPERSTRETCH | C141: MED AGED | D141: 46 | E141: 119.95 | F141: 5517.7 | G141: Skinny
A142: 3301 HIGH SKINNY WMN | B142: FRAKTO SUPER STRETCH | C142: MED AGED | D142: 2 | E142: 119.95 | F142: 239.9 | G142: Skinny
A143: 3301 HIGH SKINNY WMN | B143: SLANDER BLACK SUPERSTRETCH | C143: KD AGED | D143: 38 | E143: 119.95 | F143: 4558.1 | G143: Skinny
A144: 3301 HIGH SKINNY WMN | B144: HADRON STRETCH DENIM | C144: MED AGED ANTIC | D144: 21 | E144: 119.95 | F144: 2518.95 | G144: Skinny
A145: 3301 HIGH SKINNY WMN | B145: LANDER BLACK SUPERSTRETCH | C145: DK AGED | D145: 50 | E145: 119.95 | F145: 5997.5 | G145: Skinny
A146: 3301 HIGH SKINNY WMN | B146: 7899 | D146: 1 | E146: 119.95 | F146: 119.95 | G146: Skinny
A147: 3301 HIGH SKINNY WMN | B147: HADRON STRECH DENIM | C147: MED AGED ANTIC | D147: 10 | E147: 119.95 | F147: 1199.5 | G147: Skinny
A148: 3301 HIGH SKINNY WMN | B148: 7209 | D148: 1 | E148: 119.95 | F148: 119.95 | G148: Skinny
A149: 3301 HIGH SKINNY WMN | B149: TOWI BLACK STRTCH D | C149: MED AGED RESTORED 97 | D149: 1 | E149: 119.95 | F149: 119.95 | G149: Skinny
A150: 3301 HIGH SKINNY WMN | B150: SLANDER BLACK SUPER STRETCH | C150: DARK AGED | D150: 1 | E150: 119.95 | F150: 119.95 | G150: Skinny
A151: 3301 HIGH SKINNY WMN | B151: FRAKTO SUPER STRETCH WMN | C151: MED AGED | D151: 1 | E151: 119.95 | F151: 119.95 | G151: Skinny
A152: 3301 HIGH SKINNY WMN | B152: HADRON STRETCH DENIM | C152: MED AGED ANTIC | D152: 1 | E152: 119.95 | F152: 119.95 | G152: Skinny
A153: 3301 HIGH SKINNY WMN | B153: SLANDER BLACK SUPER STRETCH | C153: MED AGED COBLER | D153: 1 | E153: 119.95 | F153: 119.95 | G153: Skinny
A154: 3301 HIGH SKINNY WMN | B154: TOWI BLACK STRETCH DENIM | C154: MED AGED RESTORED 97 | D154: 1 | E154: 119.95 | F154: 119.95 | G154: Skinny
A155: 3301 HIGH STRAIGHT WMN | B155: BIONIC SLANDER SUPER STRETCH | C155: MED AGED | D155: 3 | E155: 149.95 | F155: 449.85 | G155: Straight
A156: 3301 HIGH STRAIGHT WMN | B156: 8452 | C156: MED AGED | D156: 1 | E156: 149.95 | F156: 149.95 | G156: Straight
A157: 3301 IW SUP SKI | B157: 6743 | C157: LT AGED | D157: 2 | E157: 129.95 | F157: 259.9 | G157: Slim
A158: 3301 JEG SKINNY WMN | B158: ULTIMATE STRETCH PEPPER | C158: RAW | D158: 21 | E158: 119.9 | F158: 2517.9 | G158: Slim
A159: 3301 JEG SKINNY WMN | B159: ULTIMATE STRETCH CINDER | C159: RINSED | D159: 26 | E159: 119.9 | F159: 3117.4 | G159: Slim
A160: 3301 JEG SKINNY WMN | B160: ULTIMATE STRETCH CELLO | C160: VINTAGE MED AGED | D160: 7 | E160: 119.9 | F160: 839.3 | G160: Slim
A161: 3301 JEG SKINNY WMN | B161: ULTIMATE STRETCH PIN | C161: MED AGED | D161: 1 | E161: 119.9 | F161: 119.9 | G161: Slim
A162: 3301 JEG SKINNY WMN | B162: ULTIMATE STRETCH | C162: LT AGED | D162: 1 | E162: 119.9 | F162: 119.9 | G162: Slim
A163: 3301 JEG SKINNY WMN | B163: ULTIMATE STRETCH GLEN | C163: LT AGED | D163: 2 | E163: 119.9 | F163: 239.8 | G163: Slim
A164: 3301 JEG SKINNY WMN | B164: ULTIMATE STRETCH GLEN | C164: LT AGED | D164: 3 | E164: 119.9 | F164: 359.7 | G164: Slim
A165: 3301 JEG SKINNY WMN | B165: ULTIMA TESTRETCH MIRROR | C165: RAW | D165: 4 | E165: 119.9 | F165: 479.6 | G165: Slim
A166: 3301 JEG SKINNY WMN | B166: ULTIMATESTRTCH GLEN | C166: LT AGED | D166: 1 | E166: 119.9 | F166: 119.9 | G166: Slim
A167: 3301 JEG SKINNY WMN | B167: POWERSTRETCH | C167: MED AGED | D167: 4 | E167: 119.9 | F167: 479.6 | G167: Slim
A168: 3301 JEG SKINNY WMN | B168: ULTIMATE STRETCH CHINA BLUE | C168: MED AGED | D168: 20 | E168: 119.9 | F168: 2398 | G168: Slim
A169: 3301 JEG SKINNY WMN | B169: POWERSTRETCH BLACK TILEX | C169: RAW | D169: 1 | E169: 119.9 | F169: 119.9 | G169: Slim
A170: 3301 JEG SKINNY WMN | B170: CINDER POWER STRETCH | C170: RINSED | D170: 2 | E170: 119.9 | F170: 239.8 | G170: Slim
A171: 3301 JEG SKINNY WMN | B171: POWERSTRETCH TILEX | C171: RAW | D171: 1 | E171: 119.9 | F171: 119.9 | G171: Slim
A172: 3301 JEG SKINNY WMN | B172: ULTIMATE STRETCH CELLO | C172: VINTAGE MED AGED | D172: 6 | E172: 119.9 | F172: 719.4 | G172: Slim
A173: 3301 JEG SKINNY WMN | B173: ULTIMATE STRETCH FIRE | C173: MED AGED | D173: 1 | E173: 119.9 | F173: 119.9 | G173: Slim
A174: 3301 JEG SKINNY WMN | B174: ULTIMATE STRETCH BLACK TILX | C174: RAW | D174: 1 | E174: 119.9 | F174: 119.9 | G174: Slim
A175: 3301 JEG SKINNY WMN | B175: ULTIMATE STRETCH BLACK TILEX | C175: RAW | D175: 2 | E175: 119.9 | F175: 239.8 | G175: Slim
A176: 3301 JEG SKINNY WMN | B176: ULTIMATE STRETCH CHINA BLUE | C176: MED AGED | D176: 18 | E176: 129.9 | F176: 2338.2 | G176: Slim
A177: 3301 JEG SKINNY WMN | B177: ULTIMATE STRETCH CHINA BLUE | C177: BLUE MEDIUM | D177: 3 | E177: 129.9 | F177: 389.7 | G177: Slim
A178: 3301 JEG SKINNY WMN | B178: ULTIMATE STRETCH | C178: VINTAGE MED AGED | D178: 1 | E178: 129.9 | F178: 129.9 | G178: Slim
A179: 3301 JEG SKINNY WMN | B179: POWERSTRETCH BLACK TILEX | C179: RAW | D179: 2 | E179: 129.9 | F179: 259.8 | G179: Slim
A180: 3301 JEG SKINNY WMN | B180: ULTIMATE STRETCH PEPPER | C180: RAW | D180: 2 | E180: 129.9 | F180: 259.8 | G180: Slim
A181: 3301 JEG SKINNY WMN | B181: ULTIMATE STRETCH FROST OD | C181: THERMEN | D181: 4 | E181: 129.9 | F181: 519.6 | G181: Slim
A182: 3301 KATE LOOSE WMN | B182: COMFORT APTON DENIM | C182: MED AGED | D182: 31 | E182: 129.9 | F182: 4026.9 | G182: Loose
A183: 3301 LOOSE WMN | B183: CENTRAL SUPER STRETCH | C183: MED AGED | D183: 69 | E183: 99.9 | F183: 6893.1 | G183: Loose
A184: 3301 LOW BOYFRIEND F | B184: BLINKER DENIM | C184: LT AGED RESTORED 74 | D184: 1 | E184: 159.95 | F184: 159.95 | G184: Boyfriend
A185: 3301 LOW BOYFRIEND FLARE LASER WMN | B185: LT WT CRASER DENIM | C185: DK AGED | D185: 19 | E185: 95 | F185: 1805
A186: 3301 LOW BOYFRIEND FLARE LASER WMN | B186: LT WT> CRASER DENIM | C186: DK AGED | D186: 15 | E186: 95 | F186: 1425
A187: 3301 LOW BOYFRIEND FLARE WMN | B187: INZA WHITE STRETCH DENIM | C187: 3D AGED | D187: 1 | E187: 99.95 | F187: 99.95 | G187: Boyfriend
A188: 3301 LOW SKINNY WMN | B188: TOWI BLACK STRETCH DENIM | C188: MED AGED RESTORED 97 | D188: 10 | E188: 139.95 | F188: 1399.5 | G188: Skinny
A189: 3301 LOW SKINNY WMN | B189: LOOMER GREY STRETCH DENIM | C189: DARK AGED COBLER | D189: 50 | E189: 139.95 | F189: 6997.5 | G189: Skinny
A190: 3301 LOW SKINNY WMN | C190: DARK AGED COBLER | D190: 1 | E190: 139.95 | F190: 139.95 | G190: Skinny
A191: 3301 LOW SKINNY WMN | B191: LOOMER GRY STRETCH DENIM | C191: DARK AGED COBLER | D191: 6 | E191: 139.95 | F191: 839.7 | G191: Skinny
A192: 3301 LOW SKINNY WMN | B192: NEUTRO STRETCH DENIM | C192: DARK AGED | D192: 2 | E192: 139.95 | F192: 279.9 | G192: Skinny
A193: 3301 LOW SKINNY WMN | B193: TOWI BLACK STRETCH D | C193: MED AGED RESTORED | D193: 7 | E193: 139.95 | F193: 979.65 | G193: Skinny
A194: 3301 LOW SKINNY WMN | B194: TOWI BLACK STRETCH DENIM | C194: MED AGED RESTORED | D194: 1 | E194: 139.95 | F194: 139.95 | G194: Skinny
A195: 3301 LOW SKINNY WMN | B195: TOWI BLACK STRETCH | C195: MED AGED RESTORED | D195: 6 | E195: 139.95 | F195: 839.7 | G195: Skinny
A196: 3301 LOW SUOER SKINNY WMN | B196: COMFORT RILLOH WHITE DENIM | C196: RINSED | D196: 4 | E196: 99.95 | F196: =E196*D196 -> 399.8
A197: 3301 LOW SUPER SKINN | B197: BLADE SUPERSTRETCH | C197: LT AGED | D197: 39 | E197: 129.95 | F197: 5068.05 | G197: Skinny
A198: 3301 LOW SUPER SKINNY | B198: ERRON STRETCH DENIM | C198: LT VINTAGE AGED | D198: 1 | E198: 129.95 | F198: 129.95 | G198: Skinny
A199: 3301 LOW SUPER SKINNY WMN | B199: TOWI BLACK STRETCH DENIM | C199: MED AGED RESTORED 97 | D199: 25 | E199: 139.95 | F199: 3498.75 | G199: Skinny
A200: 3301 LOW SUPER SKINNY WMN | B200: COMFORT RILLOH WHITE DENIM | C200: RINSED | D200: 8 | E200: 139.95 | F200: 1119.6 | G200: Skinny
... 4722 more rows

Sheet Style & Size
A1: Style | B1: Qlt | C1: Colour | D1: Barcode | E1: Size | F1: Pcs | G1: Drager
A2: 3301 SKINNY WMN | B2: COMFORT CORAL TWILL OD | C2: LT AUBURN | D2: 8718512664581 | E2: 25 | F2: =SUMIF('Data Sheet'!D:D,'Style & Size'!D2,'Data Sheet'!F:F) -> 6 | G2: 040898P062
A3: 3301 90'S TAPERED WMN | B3: SCATTER DENIM | C3: MED AGED SP | D3: 8718602951171 | E3: 28 | F3: =SUMIF('Data Sheet'!D:D,'Style & Size'!D3,'Data Sheet'!F:F) -> 2 | G3: 040898P039
A4: 3301 90'S TAPERED WMN | B4: SCATTER DENIM | C4: MED AGED SP | D4: 8718602951072 | E4: 29 | F4: =SUMIF('Data Sheet'!D:D,'Style & Size'!D4,'Data Sheet'!F:F) -> 1 | G4: 040898P035
A5: 3301 A LOW SUPER SKINNY WMN | B5: BRANTLEY STRETCH DENIM | C5: MED AGED | D5: 8718599727391 | E5: 25 | F5: =SUMIF('Data Sheet'!D:D,'Style & Size'!D5,'Data Sheet'!F:F) -> 1 | G5: 040898P008
A6: 3301 A LOW SUPER SKINNY WMN | B6: LT WT RYDELL DENIM | C6: MED AGED | D6: 8718353050185 | E6: 25 | F6: =SUMIF('Data Sheet'!D:D,'Style & Size'!D6,'Data Sheet'!F:F) -> 5 | G6: 040898P008
A7: 3301 A LOW SUPER SKINNY WMN | B7: DISTRO SUPERSTRETCH | C7: RIDSED | D7: 8718603013991 | E7: 25 | F7: =SUMIF('Data Sheet'!D:D,'Style & Size'!D7,'Data Sheet'!F:F) -> 1 | G7: 040898P024
A8: 3301 A LOW SUPER SKINNY WMN | B8: BRANTLEY STRETCH DENIM | C8: MED AGED | D8: 8718599727599 | E8: 28 | F8: =SUMIF('Data Sheet'!D:D,'Style & Size'!D8,'Data Sheet'!F:F) -> 7 | G8: 040898P015
A9: 3301 A LOW SUPER SKINNY WMN | B9: BRANTLEY STRETCH DENIM | C9: MED AGED | D9: 8718599725427 | E9: 29 | F9: =SUMIF('Data Sheet'!D:D,'Style & Size'!D9,'Data Sheet'!F:F) -> 1 | G9: 040898P035
A10: 3301 A LOW SUPER SKINNY WMN | B10: BRANTLEY STRETCH DENIM | C10: MED AGED | D10: 8718599727032 | E10: 29 | F10: =SUMIF('Data Sheet'!D:D,'Style & Size'!D10,'Data Sheet'!F:F) -> 2 | G10: 040898P037
A11: 3301 A LOW SUPER SKINNY WMN | B11: BRANTLEY STRETCH DENIM | C11: MED AGED | D11: 8718599725045 | E11: 30 | F11: =SUMIF('Data Sheet'!D:D,'Style & Size'!D11,'Data Sheet'!F:F) -> 1 | G11: 040898P017
A12: 3301 A LOW SUPER SKINNY WMN | B12: BRANTLEY STRETCH DENIM | C12: MED AGED | D12: 8718599727629 | E12: 30 | F12: =SUMIF('Data Sheet'!D:D,'Style & Size'!D12,'Data Sheet'!F:F) -> 1 | G12: 040898P021
A13: 3301 A LOW SUPER SKINNY WMN | B13: BRANTLEY STRETCH DENIM | C13: MED AGED | D13: 8718599727049 | E13: 31 | F13: =SUMIF('Data Sheet'!D:D,'Style & Size'!D13,'Data Sheet'!F:F) -> 5 | G13: 040898P025
A14: 3301 A LOW SUPER SKINNY WMN | B14: BRANTLEY STRETCH DENIM | C14: MED AGED | D14: 8718599727452 | E14: 31 | F14: =SUMIF('Data Sheet'!D:D,'Style & Size'!D14,'Data Sheet'!F:F) -> 1 | G14: 040898P025
A15: 3301 BELL CUT WMN | B15: COMFORT PONTE DENIM | C15: TRACK WASH | D15: 8718002104832 | E15: 24 | F15: =SUMIF('Data Sheet'!D:D,'Style & Size'!D15,'Data Sheet'!F:F) -> 1 | G15: 040898P071
A16: 3301 BELL CUT WMN | B16: COMFORT PONTE WMN | C16: TRACK WASH | D16: 8718002104849 | E16: 26 | F16: =SUMIF('Data Sheet'!D:D,'Style & Size'!D16,'Data Sheet'!F:F) -> 2 | G16: 040898P066
A17: 3301 BELL CUT WMN | B17: COMFORT PONTE DENIM | C17: TRACK WASH | D17: 8718002104863 | E17: 27 | F17: =SUMIF('Data Sheet'!D:D,'Style & Size'!D17,'Data Sheet'!F:F) -> 2 | G17: 040898P069
A18: 3301 BELL CUT WMN | B18: COMFORT PONTE DENIM | C18: TRACK WASH | D18: 8718002104962 | E18: 27 | F18: =SUMIF('Data Sheet'!D:D,'Style & Size'!D18,'Data Sheet'!F:F) -> 1 | G18: 040898P069
A19: 3301 BELL CUTT WMN | B19: COMFORT PONTE DENIM | C19: TRACK WASH | D19: 8718002104726 | E19: 24 | F19: =SUMIF('Data Sheet'!D:D,'Style & Size'!D19,'Data Sheet'!F:F) -> 1 | G19: 040898P071
A20: 3301 BELLCUT CHINO WMN | B20: COMFORT MAVER DENIM | C20: 3D VINTAGE | D20: 8718003291920 | E20: 27 | F20: =SUMIF('Data Sheet'!D:D,'Style & Size'!D20,'Data Sheet'!F:F) -> 1 | G20: 040898P044
A21: 3301 BELLCUT CHINO WMN | B21: COMFORT ASTON DENIM | C21: LT AGED | D21: 8718002664381 | E21: 27 | F21: =SUMIF('Data Sheet'!D:D,'Style & Size'!D21,'Data Sheet'!F:F) -> 1 | G21: 040898P060
A22: 3301 BELLCUT CHINO WMN | B22: HARVARD TWILL | C22: BLACK | D22: 8718003519468 | E22: 29 | F22: =SUMIF('Data Sheet'!D:D,'Style & Size'!D22,'Data Sheet'!F:F) -> 1 | G22: 040898P061
A23: 3301 BELLCUT WMN | B23: COMFORT PONTE DENIM | C23: TRACK WASH | D23: 8718003854255 | E23: 27 | F23: =SUMIF('Data Sheet'!D:D,'Style & Size'!D23,'Data Sheet'!F:F) -> 1 | G23: 040898P040
A24: 3301 BELLCUT WMN | B24: COMFORT ROAD DENIM | C24: TRACK WORN IN | D24: 8718098403987 | E24: 27 | F24: =SUMIF('Data Sheet'!D:D,'Style & Size'!D24,'Data Sheet'!F:F) -> 1 | G24: 040898P040
A25: 3301 BELLCUT WMN | B25: STAGER DENIM | C25: VINTAGE DESTROY | D25: 8717922550965 | E25: 27 | F25: =SUMIF('Data Sheet'!D:D,'Style & Size'!D25,'Data Sheet'!F:F) -> 1 | G25: 040898P044
A26: 3301 BELLCUT WMN | B26: COMFORT ASPEN DENIM | C26: DARK AGED | D26: 8718002658984 | E26: 27 | F26: =SUMIF('Data Sheet'!D:D,'Style & Size'!D26,'Data Sheet'!F:F) -> 1 | G26: 040898P044
A27: 3301 BELLCUT WMN | B27: COMFORT DEEPTONE DENIM | C27: RAW | D27: 8717831944961 | E27: 28 | F27: =SUMIF('Data Sheet'!D:D,'Style & Size'!D27,'Data Sheet'!F:F) -> 1 | G27: 040898P048
A28: 3301 BOOLTEG WMN | B28: COMFORT GRAFFIT DENIM | C28: DARK AGED | D28: 8718353936236 | E28: 29 | F28: =SUMIF('Data Sheet'!D:D,'Style & Size'!D28,'Data Sheet'!F:F) -> 1 | G28: 040898P056
A29: 3301 BOOTLEG WMN | B29: COMFORT SKART DENIM | C29: DARK AGED | D29: 8718601064261 | E29: 23 | F29: =SUMIF('Data Sheet'!D:D,'Style & Size'!D29,'Data Sheet'!F:F) -> 1 | G29: 040898P002
A30: 3301 BOOTLEG WMN | B30: COMFORT BAKER DENIM | C30: RAW | D30: 8718513394296 | E30: 23 | F30: =SUMIF('Data Sheet'!D:D,'Style & Size'!D30,'Data Sheet'!F:F) -> 1 | G30: 040898P002
A31: 3301 BOOTLEG WMN | B31: ITO SUPERSTRETCH | C31: RAW | D31: 8718201232800 | E31: 24 | F31: =SUMIF('Data Sheet'!D:D,'Style & Size'!D31,'Data Sheet'!F:F) -> 2 | G31: 24040898PO063
A32: 3301 BOOTLEG WMN | B32: LTO SUPER STRETCH | C32: RAW DENIM | D32: 8718201232725 | E32: 27 | F32: =SUMIF('Data Sheet'!D:D,'Style & Size'!D32,'Data Sheet'!F:F) -> 1 | G32: 040898P044
A33: 3301 BOOTLEG WMN | B33: COMFORT D.I.DENIM | C33: RUGBY WASH | D33: 8718201231766 | E33: 28 | F33: =SUMIF('Data Sheet'!D:D,'Style & Size'!D33,'Data Sheet'!F:F) -> 2 | G33: 040898P022
A34: 3301 BOOTLEG WMN | B34: COMFORT GRAFFIT DENIM | C34: DARK AGED | D34: 8718353936229 | E34: 28 | F34: =SUMIF('Data Sheet'!D:D,'Style & Size'!D34,'Data Sheet'!F:F) -> 2 | G34: 040898P050
A35: 3301 BOOTLEG WMN | B35: COMFORT ARCTIC DENIM | C35: TUMBLE RAW | D35: 8718353069897 | E35: 30 | F35: =SUMIF('Data Sheet'!D:D,'Style & Size'!D35,'Data Sheet'!F:F) -> 2 | G35: 040898P017
A36: 3301 BOOTLEG WMN | B36: GLAZE SUPER STRETCH | C36: DARK AGED | D36: 8718354760984 | E36: 30 | F36: =SUMIF('Data Sheet'!D:D,'Style & Size'!D36,'Data Sheet'!F:F) -> 2 | G36: 040898P017
A37: 3301 CHINO LOOSE TAPERED COJ WMN | B37: COMFORT ULTRA TWILL | C37: DARK PAPER BROWN | D37: 8718353746163 | E37: 26 | F37: =SUMIF('Data Sheet'!D:D,'Style & Size'!D37,'Data Sheet'!F:F) -> 1 | G37: 040898P016
A38: 3301 CHINO WMN STRAIGHT | B38: COMFORT CARE DENIM | C38: RAW | D38: 8718002662448 | E38: 27 | F38: =SUMIF('Data Sheet'!D:D,'Style & Size'!D38,'Data Sheet'!F:F) -> 1 | G38: 040898P060
A39: 3301 COMFORT SKINNY WMN | B39: ULTIMATE STRETCH CELLO | C39: VINTAGE AGED COBLER | D39: 8718513357918 | E39: 29 | F39: =SUMIF('Data Sheet'!D:D,'Style & Size'!D39,'Data Sheet'!F:F) -> 2 | G39: 040898P037
A40: 3301 COMFORT SKINNY WMN | B40: SLANDER BLACK SUPER STRETCH | C40: DARK AGED | D40: 8718601034479 | E40: 32 | F40: =SUMIF('Data Sheet'!D:D,'Style & Size'!D40,'Data Sheet'!F:F) -> 2 | G40: 040898P046
A41: 3301 CONTOUR BELL WMN | B41: ULTIMATE STRETCH | C41: SLANDER WHITE | D41: 8718513285709 | E41: 26 | F41: =SUMIF('Data Sheet'!D:D,'Style & Size'!D41,'Data Sheet'!F:F) -> 7 | G41: 040898P012
A42: 3301 CONTOUR HIGH SKINNY WMN | B42: SLANDER BLACK SUPERSTRETCH | C42: DK AGED | D42: 8718602697147 | E42: 23 | F42: =SUMIF('Data Sheet'!D:D,'Style & Size'!D42,'Data Sheet'!F:F) -> 6 | G42: 040898P071
A43: 3301 CONTOUR HIGH SKINNY WMN | B43: SLANDER BLACK SUPERSTRETCH | C43: DK AGED | D43: 8718602697154 | E43: 23 | F43: =SUMIF('Data Sheet'!D:D,'Style & Size'!D43,'Data Sheet'!F:F) -> 1 | G43: 040898P071
A44: 3301 CONTOUR HIGH SKINNY WMN | B44: NIPPON SUPERSTRETCH | C44: MED AGED | D44: 8718602693712 | E44: 23 | F44: =SUMIF('Data Sheet'!D:D,'Style & Size'!D44,'Data Sheet'!F:F) -> 11 | G44: 040898P071
A45: 3301 CONTOUR HIGH SKINNY WMN | B45: BENWICK STRETCH DENIM | C45: DARK AGED | D45: 8718602605333 | E45: 24 | F45: =SUMIF('Data Sheet'!D:D,'Style & Size'!D45,'Data Sheet'!F:F) -> 1 | G45: 040898P003
A46: 3301 CONTOUR HIGH SKINNY WMN | B46: VISOR STRETCH DENIM | C46: DARK AGED | D46: 8718602760261 | E46: 24 | F46: =SUMIF('Data Sheet'!D:D,'Style & Size'!D46,'Data Sheet'!F:F) -> 4 | G46: 040898P003
A47: 3301 CONTOUR HIGH SKINNY WMN | B47: SLANDER SUPER STRETCH | C47: DARK AGED | D47: 8718602688510 | E47: 24 | F47: =SUMIF('Data Sheet'!D:D,'Style & Size'!D47,'Data Sheet'!F:F) -> 9 | G47: 040898P003
A48: 3301 CONTOUR HIGH SKINNY WMN | B48: FRAKTO SUPER STRETCH | C48: MED AGED | D48: 8718601607413 | E48: 24 | F48: =SUMIF('Data Sheet'!D:D,'Style & Size'!D48,'Data Sheet'!F:F) -> 1 | G48: 040898P006
A49: 3301 CONTOUR HIGH SKINNY WMN | B49: FRAKTO SUPER STRETCH | C49: MED AGED | D49: 8718601620498 | E49: 24 | F49: =SUMIF('Data Sheet'!D:D,'Style & Size'!D49,'Data Sheet'!F:F) -> 1 | G49: 040898P006
A50: 3301 CONTOUR HIGH SKINNY WMN | B50: HYTO BLACK SUPER STRETCH | C50: COBLER DIP WASH | D50: 8718601935615 | E50: 24 | F50: =SUMIF('Data Sheet'!D:D,'Style & Size'!D50,'Data Sheet'!F:F) -> 5 | G50: 040898P006
A51: 3301 CONTOUR HIGH SKINNY WMN | B51: VISOR STRETCH DENIM | C51: DARK AGED | D51: 8718602760155 | E51: 24 | F51: =SUMIF('Data Sheet'!D:D,'Style & Size'!D51,'Data Sheet'!F:F) -> 7 | G51: 040898P006
A52: 3301 CONTOUR HIGH SKINNY WMN | B52: SLANDER BLACK SUPERSTRETCH | C52: DK AGED | D52: 8718602687650 | E52: 24 | F52: =SUMIF('Data Sheet'!D:D,'Style & Size'!D52,'Data Sheet'!F:F) -> 1 | G52: 24040898PO063
A53: 3301 CONTOUR HIGH SKINNY WMN | B53: SLANDER BLACK SUPERSTRETCH | C53: DK AGED | D53: 8718602687759 | E53: 24 | F53: =SUMIF('Data Sheet'!D:D,'Style & Size'!D53,'Data Sheet'!F:F) -> 17 | G53: 24040898PO063
A54: 3301 CONTOUR HIGH SKINNY WMN | B54: NIPPON SUPERSTRETCH | C54: MED AGED | D54: 8718602585017 | E54: 24 | F54: =SUMIF('Data Sheet'!D:D,'Style & Size'!D54,'Data Sheet'!F:F) -> 44 | G54: 24040898PO063
A55: 3301 CONTOUR HIGH SKINNY WMN | B55: VISOR STRETCH DENIM | C55: DARK AGED | D55: 8718602760162 | E55: 25 | F55: =SUMIF('Data Sheet'!D:D,'Style & Size'!D55,'Data Sheet'!F:F) -> 1 | G55: 040898P007
A56: 3301 CONTOUR HIGH SKINNY WMN | B56: HABB WHITE SUPER STRETCH | C56: 3D RINSED | D56: 8718601971828 | E56: 25 | F56: =SUMIF('Data Sheet'!D:D,'Style & Size'!D56,'Data Sheet'!F:F) -> 1 | G56: 040898P007
A57: 3301 CONTOUR HIGH SKINNY WMN | B57: HYTO BLACK SUPER STRETCH | C57: COBLER DIP WASH | D57: 8718601935301 | E57: 25 | F57: =SUMIF('Data Sheet'!D:D,'Style & Size'!D57,'Data Sheet'!F:F) -> 2 | G57: 040898P008
A58: 3301 CONTOUR HIGH SKINNY WMN | B58: HYTO BLACK SUPER STRETCH | C58: COBLER DIP WASH | D58: 8718601935370 | E58: 25 | F58: =SUMIF('Data Sheet'!D:D,'Style & Size'!D58,'Data Sheet'!F:F) -> 2 | G58: 040898P008
A59: 3301 CONTOUR HIGH SKINNY WMN | B59: SCAAL GREY SUPER STRETCH | C59: DARK AGED | D59: 8718601605631 | E59: 25 | F59: =SUMIF('Data Sheet'!D:D,'Style & Size'!D59,'Data Sheet'!F:F) -> 1 | G59: 040898P008
A60: 3301 CONTOUR HIGH SKINNY WMN | B60: BENWICK STRETCH DENIM | C60: DARK AGED | D60: 8718602605029 | E60: 25 | F60: =SUMIF('Data Sheet'!D:D,'Style & Size'!D60,'Data Sheet'!F:F) -> 1 | G60: 040898P008
A61: 3301 CONTOUR HIGH SKINNY WMN | B61: NIPPON SUPERSTRETCH | C61: MED AGED | D61: 8718602584911 | E61: 25 | F61: =SUMIF('Data Sheet'!D:D,'Style & Size'!D61,'Data Sheet'!F:F) -> 14 | G61: 040898P062
A62: 3301 CONTOUR HIGH SKINNY WMN | B62: HYTO BLACK SUPER STRETCH | C62: COBLER DIP WASH | D62: 8718601935202 | E62: 26 | F62: =SUMIF('Data Sheet'!D:D,'Style & Size'!D62,'Data Sheet'!F:F) -> 2 | G62: 040898P005
A63: 3301 CONTOUR HIGH SKINNY WMN | B63: LOXTON SUPER STRETCH | C63: RINSED | D63: 8718601608366 | E63: 26 | F63: =SUMIF('Data Sheet'!D:D,'Style & Size'!D63,'Data Sheet'!F:F) -> 1 | G63: 040898P005
A64: 3301 CONTOUR HIGH SKINNY WMN | B64: VISOR STRETCH DENIM | C64: DARK AGED | D64: 8718602760285 | E64: 26 | F64: =SUMIF('Data Sheet'!D:D,'Style & Size'!D64,'Data Sheet'!F:F) -> 2 | G64: 040898P012
A65: 3301 CONTOUR HIGH SKINNY WMN | B65: VISOR STRETCH DENIM | C65: DARK AGED | D65: 8718602760391 | E65: 26 | F65: =SUMIF('Data Sheet'!D:D,'Style & Size'!D65,'Data Sheet'!F:F) -> 3 | G65: 040898P012
A66: 3301 CONTOUR HIGH SKINNY WMN | B66: SLANDER BLACK SUPERSTRETCH | C66: DK AGED | D66: 8718602688015 | E66: 26 | F66: =SUMIF('Data Sheet'!D:D,'Style & Size'!D66,'Data Sheet'!F:F) -> 5 | G66: 040898P066
A67: 3301 CONTOUR HIGH SKINNY WMN | B67: COMFORT LINET DENIM | C67: LT AGED DESTORY | D67: 8718601568790 | E67: 27 | F67: =SUMIF('Data Sheet'!D:D,'Style & Size'!D67,'Data Sheet'!F:F) -> 1 | G67: 040898P040
A68: 3301 CONTOUR HIGH SKINNY WMN | B68: VISOR STRETCH DENIM | C68: DARK AGED | D68: 8718602760414 | E68: 28 | F68: =SUMIF('Data Sheet'!D:D,'Style & Size'!D68,'Data Sheet'!F:F) -> 5 | G68: 040898P021
A69: 3301 CONTOUR HIGH SKINNY WMN | B69: COMFORT INOX DENIM | C69: DARK AGED | D69: 8718602969763 | E69: 28 | F69: =SUMIF('Data Sheet'!D:D,'Style & Size'!D69,'Data Sheet'!F:F) -> 10 | G69: 040898P033
A70: 3301 CONTOUR HIGH SKINNY WMN | B70: HYTO BLACK SUPER STRETCH | C70: COBLER DIP WASH | D70: 8718601935226 | E70: 28 | F70: =SUMIF('Data Sheet'!D:D,'Style & Size'!D70,'Data Sheet'!F:F) -> 8 | G70: 040898P033
A71: 3301 CONTOUR HIGH SKINNY WMN | B71: SCALL GREY SUPER STRETCH | C71: DARK AGED | D71: 8718601605662 | E71: 28 | F71: =SUMIF('Data Sheet'!D:D,'Style & Size'!D71,'Data Sheet'!F:F) -> 2 | G71: 040898P033
A72: 3301 CONTOUR HIGH SKINNY WMN | B72: OZMO SUPER STRETCH | C72: DARK AGED | D72: 8718601609028 | E72: 28 | F72: =SUMIF('Data Sheet'!D:D,'Style & Size'!D72,'Data Sheet'!F:F) -> 1 | G72: 040898P038
A73: 3301 CONTOUR HIGH SKINNY WMN | B73: HYTO BLACK SUPER STRETCH | C73: COBLER DIP WASH | D73: 8718601935332 | E73: 28 | F73: =SUMIF('Data Sheet'!D:D,'Style & Size'!D73,'Data Sheet'!F:F) -> 2 | G73: 040898P054
A74: 3301 CONTOUR HIGH SKINNY WMN | B74: SCAAL GREY SUPERSTTETCH | C74: DARK AGED | D74: 8718601605778 | E74: 28 | F74: =SUMIF('Data Sheet'!D:D,'Style & Size'!D74,'Data Sheet'!F:F) -> 4 | G74: 040898P054
A75: 3301 CONTOUR HIGH SKINNY WMN | B75: HYTO BLACK SUPER STRETCH | C75: COBLER DIP WASH | D75: 8718601935233 | E75: 29 | F75: =SUMIF('Data Sheet'!D:D,'Style & Size'!D75,'Data Sheet'!F:F) -> 11 | G75: 040898P035
A76: 3301 CONTOUR HIGH SKINNY WMN | B76: SCAAL GREY SUPER STRETCH | C76: DARK AGED | D76: 8718601605785 | E76: 29 | F76: =SUMIF('Data Sheet'!D:D,'Style & Size'!D76,'Data Sheet'!F:F) -> 6 | G76: 040898P037
A77: 3301 CONTOUR HIGH SKINNY WMN | B77: COMFORT INOX DENIM | C77: DARK AGED | D77: 8718602969770 | E77: 29 | F77: =SUMIF('Data Sheet'!D:D,'Style & Size'!D77,'Data Sheet'!F:F) -> 2 | G77: 040898P049
A78: 3301 CONTOUR HIGH SKINNY WMN | B78: FRAKTO SUPER STRETCH | C78: MED AGED | D78: 8718601607352 | E78: 29 | F78: =SUMIF('Data Sheet'!D:D,'Style & Size'!D78,'Data Sheet'!F:F) -> 1 | G78: 040898P049
A79: 3301 CONTOUR HIGH SKINNY WMN | B79: HYTO BLACK SUPER STRETCH | C79: COBLER DIP WASH | D79: 8718601935240 | E79: 30 | F79: =SUMIF('Data Sheet'!D:D,'Style & Size'!D79,'Data Sheet'!F:F) -> 6 | G79: 040898P019
A80: 3301 CONTOUR HIGH SKINNY WMN | B80: SCAAL GREY SUPER STRETCH | C80: DARK AGED | D80: 8718601605686 | E80: 30 | F80: =SUMIF('Data Sheet'!D:D,'Style & Size'!D80,'Data Sheet'!F:F) -> 1 | G80: 040898P019
A81: 3301 CONTOUR HIGH SKINNY WMN | B81: HYTO BLACK SUPER STRETCH | C81: COBLER DIP WASH | D81: 8718601935257 | E81: 31 | F81: =SUMIF('Data Sheet'!D:D,'Style & Size'!D81,'Data Sheet'!F:F) -> 8 | G81: 040898P034
A82: 3301 CONTOUR HIGH SKINNY WMN | B82: HYTO BLACK SUPERSRETCH | C82: COBLER DIP WASH | D82: 8718601935363 | E82: 31 | F82: =SUMIF('Data Sheet'!D:D,'Style & Size'!D82,'Data Sheet'!F:F) -> 1 | G82: 040898P034
A83: 3301 CONTOUR HIGH SKINNY WMN | B83: SCAAL GREY SPRSTRTCH | C83: DARK AGED | D83: 8718601605693 | E83: 31 | F83: =SUMIF('Data Sheet'!D:D,'Style & Size'!D83,'Data Sheet'!F:F) -> 1 | G83: 040898P034
A84: 3301 CONTOUR HIGH STRAIGHT WMN | B84: NEUTRO STRETCH DENIM | C84: DARK AGED | D84: 8718602753270 | E84: 23 | F84: =SUMIF('Data Sheet'!D:D,'Style & Size'!D84,'Data Sheet'!F:F) -> 1 | G84: 040898P002
A85: 3301 CONTOUR HIGH STRAIGHT WMN | B85: BIONIC SLANDER SUPER STRETCH | C85: MED AGED | D85: 8718599559480 | E85: 23 | F85: =SUMIF('Data Sheet'!D:D,'Style & Size'!D85,'Data Sheet'!F:F) -> 1 | G85: 040898P002
A86: 3301 CONTOUR HIGH STRAIGHT WMN | B86: HYTO BLACK SUPER STRETCH | C86: COBLER DIP WASH | D86: 8718601662481 | E86: 24 | F86: =SUMIF('Data Sheet'!D:D,'Style & Size'!D86,'Data Sheet'!F:F) -> 1 | G86: 040898P003
A87: 3301 CONTOUR HIGH STRAIGHT WMN | B87: BRANTLEY STRETCH DENIM | C87: MED AGED | D87: 8718599833474 | E87: 24 | F87: =SUMIF('Data Sheet'!D:D,'Style & Size'!D87,'Data Sheet'!F:F) -> 6 | G87: 040898P003
A88: 3301 CONTOUR HIGH STRAIGHT WMN | B88: HYTO BLACK SUPER STRETCH | C88: COBLER DIP WASH | D88: 8718601935721 | E88: 24 | F88: =SUMIF('Data Sheet'!D:D,'Style & Size'!D88,'Data Sheet'!F:F) -> 15 | G88: 040898P003
A89: 3301 CONTOUR HIGH STRAIGHT WMN | B89: NOUTRO STRETCH DENIM | C89: DARK AGED | D89: 8718601919936 | E89: 24 | F89: =SUMIF('Data Sheet'!D:D,'Style & Size'!D89,'Data Sheet'!F:F) -> 21 | G89: 040898P003
A90: 3301 CONTOUR HIGH STRAIGHT WMN | B90: HYTO BLACK SUPER STRETCH | C90: COBLER DIP WASH | D90: 8718601939613 | E90: 24 | F90: =SUMIF('Data Sheet'!D:D,'Style & Size'!D90,'Data Sheet'!F:F) -> 6 | G90: 040898P003
A91: 3301 CONTOUR HIGH STRAIGHT WMN | B91: NOUTRO STRETCH DENIM | C91: DARK AGED | D91: 8718601919820 | E91: 24 | F91: =SUMIF('Data Sheet'!D:D,'Style & Size'!D91,'Data Sheet'!F:F) -> 4 | G91: 040898P006
A92: 3301 CONTOUR HIGH STRAIGHT WMN | B92: BENWICK STRETCH DENIM | C92: DARK AGED | D92: 8718602604909 | E92: 24 | F92: =SUMIF('Data Sheet'!D:D,'Style & Size'!D92,'Data Sheet'!F:F) -> 1 | G92: 040898P026
A93: 3301 CONTOUR HIGH STRAIGHT WMN | B93: BIONIC SLANDER SUPER STRETCH | C93: MED AGED | D93: 8718599559589 | E93: 24 | F93: =SUMIF('Data Sheet'!D:D,'Style & Size'!D93,'Data Sheet'!F:F) -> 3 | G93: 040898P026
A94: 3301 CONTOUR HIGH STRAIGHT WMN | B94: NEUTRO STRETCH DENIM | C94: DARK AGED | D94: 8718601919837 | E94: 25 | F94: =SUMIF('Data Sheet'!D:D,'Style & Size'!D94,'Data Sheet'!F:F) -> 2 | G94: 040898P007
A95: 3301 CONTOUR HIGH STRAIGHT WMN | B95: NIPPON SUPER STRETCH | C95: DARK AGED | D95: 8718602586793 | E95: 25 | F95: =SUMIF('Data Sheet'!D:D,'Style & Size'!D95,'Data Sheet'!F:F) -> 1 | G95: 040898P007
A96: 3301 CONTOUR HIGH STRAIGHT WMN | B96: HYTO BLACK SUPER STRETCH | C96: COBLER DIP WASH | D96: 8718601935950 | E96: 25 | F96: =SUMIF('Data Sheet'!D:D,'Style & Size'!D96,'Data Sheet'!F:F) -> 3 | G96: 040898P008
A97: 3301 CONTOUR HIGH STRAIGHT WMN | B97: NEUTRO STRTCH DENIM | C97: DARK AGED | D97: 8718601920055 | E97: 25 | F97: =SUMIF('Data Sheet'!D:D,'Style & Size'!D97,'Data Sheet'!F:F) -> 1 | G97: 040898P008
A98: 3301 CONTOUR HIGH STRAIGHT WMN | B98: BIONIC SLANDER SUPER STRETCH | C98: MED AGED | D98: 8718599559602 | E98: 25 | F98: =SUMIF('Data Sheet'!D:D,'Style & Size'!D98,'Data Sheet'!F:F) -> 3 | G98: 040898P008
A99: 3301 CONTOUR HIGH STRAIGHT WMN | B99: HYTO BLACK SUPER STRETCH | C99: COBLER DIP WASH | D99: 8718601935844 | E99: 25 | F99: =SUMIF('Data Sheet'!D:D,'Style & Size'!D99,'Data Sheet'!F:F) -> 3 | G99: 040898P010
A100: 3301 CONTOUR HIGH STRAIGHT WMN | B100: HYTO BLACK SUPER STRETCH | C100: COBLER DIP WASH | D100: 8718601938548 | E100: 25 | F100: =SUMIF('Data Sheet'!D:D,'Style & Size'!D100,'Data Sheet'!F:F) -> 4 | G100: 040898P010
A101: 3301 CONTOUR HIGH STRAIGHT WMN | B101: HYTO BLACK SUPER STRETCH | C101: COBLER DIP WASH | D101: 8718601935745 | E101: 26 | F101: =SUMIF('Data Sheet'!D:D,'Style & Size'!D101,'Data Sheet'!F:F) -> 4 | G101: 040898P012
A102: 3301 CONTOUR HIGH STRAIGHT WMN | B102: HYTO BLACK SUPER STRETCH | C102: COBLER DIP WASH | D102: 8718601935851 | E102: 26 | F102: =SUMIF('Data Sheet'!D:D,'Style & Size'!D102,'Data Sheet'!F:F) -> 9 | G102: 040898P012
A103: 3301 CONTOUR HIGH STRAIGHT WMN | B103: VISOR STRETCH DENIM | C103: DARK AGED | D103: 8718602412290 | E103: 26 | F103: =SUMIF('Data Sheet'!D:D,'Style & Size'!D103,'Data Sheet'!F:F) -> 1 | G103: 040898P012
A104: 3301 CONTOUR HIGH STRAIGHT WMN | B104: HYTO BLACK SUPER STRETCH | C104: COBLER DIP WASH | D104: 8718601938449 | E104: 26 | F104: =SUMIF('Data Sheet'!D:D,'Style & Size'!D104,'Data Sheet'!F:F) -> 9 | G104: 040898P012
A105: 3301 CONTOUR HIGH STRAIGHT WMN | B105: BRANTLEY STRETCH DENIM | C105: MED AGED | D105: 8718599833610 | E105: 27 | F105: =SUMIF('Data Sheet'!D:D,'Style & Size'!D105,'Data Sheet'!F:F) -> 7 | G105: 040898P040
A106: 3301 CONTOUR HIGH STRAIGHT WMN | B106: NIPPON SUPER STRETCH | C106: DARK AGED | D106: 8718602285894 | E106: 27 | F106: =SUMIF('Data Sheet'!D:D,'Style & Size'!D106,'Data Sheet'!F:F) -> 3 | G106: 040898P040
A107: 3301 CONTOUR HIGH STRAIGHT WMN | B107: VISOR STRETCH DENIM | C107: DARK AGED | D107: 8718602412306 | E107: 27 | F107: =SUMIF('Data Sheet'!D:D,'Style & Size'!D107,'Data Sheet'!F:F) -> 4 | G107: 040898P040
A108: 3301 CONTOUR HIGH STRAIGHT WMN | B108: VISOR STRETCH DENIM | C108: DARK AGED | D108: 8718602760292 | E108: 27 | F108: =SUMIF('Data Sheet'!D:D,'Style & Size'!D108,'Data Sheet'!F:F) -> 3 | G108: 040898P040
A109: 3301 CONTOUR HIGH STRAIGHT WMN | B109: HYTO BLACK SUPER STRETCH | C109: COBLER DIP WASH | D109: 8718601935752 | E109: 27 | F109: =SUMIF('Data Sheet'!D:D,'Style & Size'!D109,'Data Sheet'!F:F) -> 3 | G109: 040898P042
A110: 3301 CONTOUR HIGH STRAIGHT WMN | B110: BRANTLEY STRETCH DENIM | C110: MED AGED | D110: 8718599833351 | E110: 28 | F110: =SUMIF('Data Sheet'!D:D,'Style & Size'!D110,'Data Sheet'!F:F) -> 17 | G110: 040898P015
A111: 3301 CONTOUR HIGH STRAIGHT WMN | B111: HYTO BLACK SUPER STRETCH | C111: COBLER DIP WASH | D111: 8718601935875 | E111: 28 | F111: =SUMIF('Data Sheet'!D:D,'Style & Size'!D111,'Data Sheet'!F:F) -> 5 | G111: 040898P021
A112: 3301 CONTOUR HIGH STRAIGHT WMN | B112: HYTO BLACK SUPER STRETCH | C112: COBLER DIP WASH | D112: 8718601939002 | E112: 28 | F112: =SUMIF('Data Sheet'!D:D,'Style & Size'!D112,'Data Sheet'!F:F) -> 2 | G112: 040898P054
A113: 3301 CONTOUR HIGH STRAIGHT WMN | B113: BRANTLEY STRETCH DENIM | C113: MED AGED | D113: 8718599833382 | E113: 29 | F113: =SUMIF('Data Sheet'!D:D,'Style & Size'!D113,'Data Sheet'!F:F) -> 1 | G113: 040898P037
A114: 3301 CONTOUR HIGH STRAIGHT WMN | B114: NIPPON SUPER STRETCH | C114: DARK AGED | D114: 8718602586946 | E114: 29 | F114: =SUMIF('Data Sheet'!D:D,'Style & Size'!D114,'Data Sheet'!F:F) -> 6 | G114: 040898P037
A115: 3301 CONTOUR HIGH STRAIGHT WMN | B115: BRANTLEY STRETCH DENIM | C115: MED AGED | D115: 8718599833078 | E115: 30 | F115: =SUMIF('Data Sheet'!D:D,'Style & Size'!D115,'Data Sheet'!F:F) -> 2 | G115: 040898P017
A116: 3301 CONTOUR HIGH STRAIGHT WMN | B116: NIPPON SUPER STRETCH | C116: DARK AGED | D116: 8718602586847 | E116: 30 | F116: =SUMIF('Data Sheet'!D:D,'Style & Size'!D116,'Data Sheet'!F:F) -> 4 | G116: 040898P021
A117: 3301 CONTOUR HIGH STRAIGHT WMN | B117: NIOPPON SUPER STRETCH | C117: DARK AGED | D117: 8718602586960 | E117: 31 | F117: =SUMIF('Data Sheet'!D:D,'Style & Size'!D117,'Data Sheet'!F:F) -> 2 | G117: 040898P025
A118: 3301 CONTOUR HIGH STRAIGHT WMN | B118: HYTO BLACK SUPER STRETCH | C118: COBLER DIP WASH | D118: 8718601938494 | E118: 31 | F118: =SUMIF('Data Sheet'!D:D,'Style & Size'!D118,'Data Sheet'!F:F) -> 3 | G118: 040898P034
A119: 3301 CONTOUR HIGH STRAIGHT WMN | B119: HYTO BLACK SUPERSRETCH | C119: COBLER DIP WASH | D119: 8718601937008 | E119: 31 | F119: =SUMIF('Data Sheet'!D:D,'Style & Size'!D119,'Data Sheet'!F:F) -> 2 | G119: 040898P034
A120: 3301 CONTOUR HIGH STRAIGHT WMN | B120: BENWICK STRETCH DENIM | C120: DARK AGED | D120: 8718602604879 | E120: 32 | F120: =SUMIF('Data Sheet'!D:D,'Style & Size'!D120,'Data Sheet'!F:F) -> 2 | G120: 040898P046
A121: 3301 CONTOUR HIGH SUPER SKINNY WMN | B121: FRAKTO SUPER STRETCH | C121: MED AGED | D121: 8718601657975 | E121: 28 | F121: =SUMIF('Data Sheet'!D:D,'Style & Size'!D121,'Data Sheet'!F:F) -> 1 | G121: 040898P022
A122: 3301 CONTOUR HIGH SUPER SKINNY WMN | B122: NEUTRO STRETCH DENIM | C122: DARK AGED | D122: 8718601563191 | E122: 28 | F122: =SUMIF('Data Sheet'!D:D,'Style & Size'!D122,'Data Sheet'!F:F) -> 2 | G122: 040898P039
A123: 3301 CONTOUR HIGH SUPER SKINNY WMN | B123: NEUTRO STRETCH DENIM | C123: DARK AGED | D123: 8718601563313 | E123: 29 | F123: =SUMIF('Data Sheet'!D:D,'Style & Size'!D123,'Data Sheet'!F:F) -> 1 | G123: 040898P037
A124: 3301 CONTOUR HIGH SUPER SKINNY WMN | B124: FRAKTO SUPER STRETCH | C124: MED AGED | D124: 8718601620566 | E124: 31 | F124: =SUMIF('Data Sheet'!D:D,'Style & Size'!D124,'Data Sheet'!F:F) -> 1 | G124: 040898P025
A125: 3301 CONTOUR HIGH SUPERSKINNY WMN | B125: NEUTRO STRETCH DENIM | C125: DARK AGED | D125: 8718601563177 | E125: 26 | F125: =SUMIF('Data Sheet'!D:D,'Style & Size'!D125,'Data Sheet'!F:F) -> 3 | G125: 040898P012
A126: 3301 CONTOUR SKINNY WMN | B126: IVIE SUPER STRETCH | C126: MED AGED | D126: 8718601467925 | E126: 23 | F126: =SUMIF('Data Sheet'!D:D,'Style & Size'!D126,'Data Sheet'!F:F) -> 1 | G126: 040898P002
A127: 3301 CONTOUR SKINNY WMN | B127: FRAKTO SUPER STRETCH | C127: MED AGED | D127: 8172601603743 | E127: 23 | F127: =SUMIF('Data Sheet'!D:D,'Style & Size'!D127,'Data Sheet'!F:F) -> 1 | G127: 040898P002
A128: 3301 CONTOUR SKINNY WMN | B128: COMFORT BLACK EDINGTON DENIM | C128: 3D RAW | D128: 8718601264128 | E128: 23 | F128: =SUMIF('Data Sheet'!D:D,'Style & Size'!D128,'Data Sheet'!F:F) -> 1 | G128: 040898P002
A129: 3301 CONTOUR SKINNY WMN | B129: COMFORT BLACK EDINGTON DENIM | C129: 3D RAW | D129: 8718601467819 | E129: 23 | F129: =SUMIF('Data Sheet'!D:D,'Style & Size'!D129,'Data Sheet'!F:F) -> 2 | G129: 040898P002
A130: 3301 CONTOUR SKINNY WMN | B130: COMFORT BLACK EDINGTON DENIM | C130: 3D RAW | D130: 8718601467826 | E130: 23 | F130: =SUMIF('Data Sheet'!D:D,'Style & Size'!D130,'Data Sheet'!F:F) -> 11 | G130: 040898P002
A131: 3301 CONTOUR SKINNY WMN | B131: FRAKTO SUPER STRETCH | C131: MED AGED | D131: 8718601603743 | E131: 23 | F131: =SUMIF('Data Sheet'!D:D,'Style & Size'!D131,'Data Sheet'!F:F) -> 3 | G131: 040898P002
A132: 3301 CONTOUR SKINNY WMN | B132: POWERSTRETCH BLACK TILEX | C132: RAW | D132: 8718512600497 | E132: 25 | F132: =SUMIF('Data Sheet'!D:D,'Style & Size'!D132,'Data Sheet'!F:F) -> 6 | G132: 040898P007
A133: 3301 CONTOUR SKINNY WMN | B133: POWERSTRETCH TILEX BLACK | C133: RAW | D133: 8718512600503 | E133: 25 | F133: =SUMIF('Data Sheet'!D:D,'Style & Size'!D133,'Data Sheet'!F:F) -> 2 | G133: 040898P007
A134: 3301 CONTOUR SKINNY WMN | B134: COMFORT BLACK EDINGTON | C134: 3D RAW | D134: 8718601264012 | E134: 25 | F134: =SUMIF('Data Sheet'!D:D,'Style & Size'!D134,'Data Sheet'!F:F) -> 22 | G134: 040898P007
A135: 3301 CONTOUR SKINNY WMN | B135: GLAZE SUPER STRETCH | C135: DARK AGED | D135: 8718354656980 | E135: 25 | F135: =SUMIF('Data Sheet'!D:D,'Style & Size'!D135,'Data Sheet'!F:F) -> 2 | G135: 040898P008
A136: 3301 CONTOUR SKINNY WMN | B136: ULTIMATE STRETCH SLANDER WHITE | C136: LT AGED | D136: 8718513678112 | E136: 25 | F136: =SUMIF('Data Sheet'!D:D,'Style & Size'!D136,'Data Sheet'!F:F) -> 1 | G136: 040898P008
A137: 3301 CONTOUR SKINNY WMN | B137: L SUPER STRETCH | C137: MED AGED | D137: 8718601265484 | E137: 25 | F137: =SUMIF('Data Sheet'!D:D,'Style & Size'!D137,'Data Sheet'!F:F) -> 1 | G137: 040898P008
A138: 3301 CONTOUR SKINNY WMN | B138: L SUPER STRETCH | C138: DARK AGED | D138: 8718601264944 | E138: 25 | F138: =SUMIF('Data Sheet'!D:D,'Style & Size'!D138,'Data Sheet'!F:F) -> 2 | G138: 040898P008
A139: 3301 CONTOUR SKINNY WMN | B139: BRONX SUPER STRETCH TWILL OD | C139: DARK CARRIBEAN | D139: 8718512448549 | E139: 25 | F139: =SUMIF('Data Sheet'!D:D,'Style & Size'!D139,'Data Sheet'!F:F) -> 1 | G139: 040898P011
A140: 3301 CONTOUR SKINNY WMN | B140: MIRROR TWILL SPERSTRETCH | C140: BRIGHT OXBLOOD | D140: 8718513028542 | E140: 25 | F140: =SUMIF('Data Sheet'!D:D,'Style & Size'!D140,'Data Sheet'!F:F) -> 5 | G140: 040898P011
A141: 3301 CONTOUR SKINNY WMN | B141: MIRROR TWILL SUPER STRETCH | C141: MAJESTIC | D141: 8718513027460 | E141: 25 | F141: =SUMIF('Data Sheet'!D:D,'Style & Size'!D141,'Data Sheet'!F:F) -> 2 | G141: 040898P024
A142: 3301 CONTOUR SKINNY WMN | B142: COMFORT RIDER DENIM | C142: MED AGED | D142: 8718354769192 | E142: 26 | F142: =SUMIF('Data Sheet'!D:D,'Style & Size'!D142,'Data Sheet'!F:F) -> 1 | G142: 040898P005
A143: 3301 CONTOUR SKINNY WMN | B143: SUPER STRETCH TWILL OD | C143: DARK CARRIBEAN | D143: 8718512448556 | E143: 26 | F143: =SUMIF('Data Sheet'!D:D,'Style & Size'!D143,'Data Sheet'!F:F) -> 8 | G143: 040898P005
A144: 3301 CONTOUR SKINNY WMN | B144: COMFORT DIXON DENIM | C144: DARK AGED | D144: 8718512599531 | E144: 26 | F144: =SUMIF('Data Sheet'!D:D,'Style & Size'!D144,'Data Sheet'!F:F) -> 5 | G144: 040898P009
A145: 3301 CONTOUR SKINNY WMN | B145: ARVICK SUPER STRETCH | C145: LT AGED | D145: 8718601032253 | E145: 26 | F145: =SUMIF('Data Sheet'!D:D,'Style & Size'!D145,'Data Sheet'!F:F) -> 1 | G145: 040898P009
A146: 3301 CONTOUR SKINNY WMN | B146: GLAC SUPER STRETCH | C146: DARK COBLER | D146: 8718512928263 | E146: 26 | F146: =SUMIF('Data Sheet'!D:D,'Style & Size'!D146,'Data Sheet'!F:F) -> 1 | G146: 040898P009
A147: 3301 CONTOUR SKINNY WMN | B147: MINE SUPER STRETCH | C147: MED AGED | D147: 8718512136095 | E147: 27 | F147: =SUMIF('Data Sheet'!D:D,'Style & Size'!D147,'Data Sheet'!F:F) -> 2 | G147: 040898P044
A148: 3301 CONTOUR SKINNY WMN | B148: COMFORT SKART DENIM | C148: DARK AGED | D148: 8718601033236 | E148: 27 | F148: =SUMIF('Data Sheet'!D:D,'Style & Size'!D148,'Data Sheet'!F:F) -> 1 | G148: 040898P044
A149: 3301 CONTOUR SKINNY WMN | B149: SLANDER BLUE SUPER STRETCH | C149: MED AGED | D149: 8718601034851 | E149: 27 | F149: =SUMIF('Data Sheet'!D:D,'Style & Size'!D149,'Data Sheet'!F:F) -> 2 | G149: 040898P044
A150: 3301 CONTOUR SKINNY WMN | B150: L.SUPER STRETCH | C150: MED AGED | D150: 8718601265613 | E150: 27 | F150: =SUMIF('Data Sheet'!D:D,'Style & Size'!D150,'Data Sheet'!F:F) -> 1 | G150: 040898P044
A151: 3301 CONTOUR SKINNY WMN | B151: NEW COMFORT MIRROR TWILL | C151: DARK PRINCE | D151: 8718512524632 | E151: 27 | F151: =SUMIF('Data Sheet'!D:D,'Style & Size'!D151,'Data Sheet'!F:F) -> 2 | G151: 040898P057
A152: 3301 CONTOUR SKINNY WMN | B152: ULTIMATE STRETCH SLANDER WHITE | C152: LT AGED | D152: 8718513678259 | E152: 28 | F152: =SUMIF('Data Sheet'!D:D,'Style & Size'!D152,'Data Sheet'!F:F) -> 4 | G152: 040898P015
A153: 3301 CONTOUR SKINNY WMN | B153: L. SUPER STRETCH | C153: MED AGED | D153: 8718601265620 | E153: 28 | F153: =SUMIF('Data Sheet'!D:D,'Style & Size'!D153,'Data Sheet'!F:F) -> 3 | G153: 040898P015
A154: 3301 CONTOUR SKINNY WMN | B154: MIRROR TWILL SUPER STRETCH | C154: MAZARINE BLUE | D154: 8718513026524 | E154: 28 | F154: =SUMIF('Data Sheet'!D:D,'Style & Size'!D154,'Data Sheet'!F:F) -> 6 | G154: 040898P021
A155: 3301 CONTOUR SKINNY WMN | B155: COMFORT BLACK EDINGTON DENIM | C155: 3D RAW | D155: 8718601264159 | E155: 28 | F155: =SUMIF('Data Sheet'!D:D,'Style & Size'!D155,'Data Sheet'!F:F) -> 1 | G155: 040898P021
A156: 3301 CONTOUR SKINNY WMN | B156: COMFORT RIDER DENIM | C156: MED AGED | D156: 8718354769215 | E156: 28 | F156: =SUMIF('Data Sheet'!D:D,'Style & Size'!D156,'Data Sheet'!F:F) -> 1 | G156: 040898P033
A157: 3301 CONTOUR SKINNY WMN | B157: COMFORT BLACK VALL DENIM | C157: RAW | D157: 8718513226160 | E157: 28 | F157: =SUMIF('Data Sheet'!D:D,'Style & Size'!D157,'Data Sheet'!F:F) -> 4 | G157: 040898P033
A158: 3301 CONTOUR SKINNY WMN | B158: BRONX SUPER STRETCH TWILL OD | C158: DARK CARRIBEAN | D158: 8718512448464 | E158: 28 | F158: =SUMIF('Data Sheet'!D:D,'Style & Size'!D158,'Data Sheet'!F:F) -> 3 | G158: 040898P033
A159: 3301 CONTOUR SKINNY WMN | B159: BRONX SUPER STRETCH TWILL OD | C159: DARK CARRIBEAN | D159: 8718512448570 | E159: 28 | F159: =SUMIF('Data Sheet'!D:D,'Style & Size'!D159,'Data Sheet'!F:F) -> 9 | G159: 040898P033
A160: 3301 CONTOUR SKINNY WMN | B160: MIRROR TWILL SUPER STRETCH | C160: MAZARINE BLUE | D160: 8718513026388 | E160: 28 | F160: =SUMIF('Data Sheet'!D:D,'Style & Size'!D160,'Data Sheet'!F:F) -> 2 | G160: 040898P033
A161: 3301 CONTOUR SKINNY WMN | B161: COM BLACK VELI DENIM | C161: RAW | D161: 8718513226054 | E161: 28 | F161: =SUMIF('Data Sheet'!D:D,'Style & Size'!D161,'Data Sheet'!F:F) -> 14 | G161: 040898P039
A162: 3301 CONTOUR SKINNY WMN | B162: L. SUPER STRETCH | C162: DARK AGED | D162: 8718601265088 | E162: 28 | F162: =SUMIF('Data Sheet'!D:D,'Style & Size'!D162,'Data Sheet'!F:F) -> 3 | G162: 040898P039
A163: 3301 CONTOUR SKINNY WMN | B163: MIRROR TWILL SUPER STRETCH | C163: MAZARINE BLUE | D163: 8718513026418 | E163: 28 | F163: =SUMIF('Data Sheet'!D:D,'Style & Size'!D163,'Data Sheet'!F:F) -> 2 | G163: 040898P039
A164: 3301 CONTOUR SKINNY WMN | B164: COMFORT FINT DENIM | C164: DARK AGED | D164: 8718513227242 | E164: 28 | F164: =SUMIF('Data Sheet'!D:D,'Style & Size'!D164,'Data Sheet'!F:F) -> 2 | G164: 040898P050
A165: 3301 CONTOUR SKINNY WMN | B165: MINE SUPER STRETCH | C165: MED AGED | D165: 8718512136101 | E165: 28 | F165: =SUMIF('Data Sheet'!D:D,'Style & Size'!D165,'Data Sheet'!F:F) -> 1 | G165: 040898P054
A166: 3301 CONTOUR SKINNY WMN | B166: GLAZE SUPERSTRESTCH | C166: DARK AGED | D166: 8718354657130 | E166: 29 | F166: =SUMIF('Data Sheet'!D:D,'Style & Size'!D166,'Data Sheet'!F:F) -> 1 | G166: 040898P023
A167: 3301 CONTOUR SKINNY WMN | B167: MINE SUPER STRETCH | C167: MED AGED | D167: 8718512136118 | E167: 29 | F167: =SUMIF('Data Sheet'!D:D,'Style & Size'!D167,'Data Sheet'!F:F) -> 2 | G167: 040898P023
A168: 3301 CONTOUR SKINNY WMN | B168: BLOSSOM SUPER STRETCH | C168: MED AGED | D168: 8718513356720 | E168: 29 | F168: =SUMIF('Data Sheet'!D:D,'Style & Size'!D168,'Data Sheet'!F:F) -> 2 | G168: 040898P023
A169: 3301 CONTOUR SKINNY WMN | B169: UTTIMATESTRETCH PIN | C169: MED AGED | D169: 8718513357260 | E169: 29 | F169: =SUMIF('Data Sheet'!D:D,'Style & Size'!D169,'Data Sheet'!F:F) -> 1 | G169: 040898P023
A170: 3301 CONTOUR SKINNY WMN | B170: ULTIMATE STRETCH SLANDER WHITE | C170: LT AGED | D170: 8718513678266 | E170: 29 | F170: =SUMIF('Data Sheet'!D:D,'Style & Size'!D170,'Data Sheet'!F:F) -> 4 | G170: 040898P023
A171: 3301 CONTOUR SKINNY WMN | B171: SLANDER BLACK SUPER STRETCH | C171: DARK AGED | D171: 8718601034332 | E171: 29 | F171: =SUMIF('Data Sheet'!D:D,'Style & Size'!D171,'Data Sheet'!F:F) -> 3 | G171: 040898P023
A172: 3301 CONTOUR SKINNY WMN | B172: BLOSSOM BLACK SUPER STRETCH | C172: RINSED | D172: 8718602758237 | E172: 29 | F172: =SUMIF('Data Sheet'!D:D,'Style & Size'!D172,'Data Sheet'!F:F) -> 10 | G172: 040898P023
A173: 3301 CONTOUR SKINNY WMN | C173: BRIGHT OXBLOOD | D173: 8718513028580 | E173: 29 | F173: =SUMIF('Data Sheet'!D:D,'Style & Size'!D173,'Data Sheet'!F:F) -> 3 | G173: 040898P027
A174: 3301 CONTOUR SKINNY WMN | B174: MIRROR TWILL SUPER STRETCH | C174: BRIGHT OXBLOOD | D174: 8718513028573 | E174: 29 | F174: =SUMIF('Data Sheet'!D:D,'Style & Size'!D174,'Data Sheet'!F:F) -> 4 | G174: 040898P028
A175: 3301 CONTOUR SKINNY WMN | B175: MIRROR TWILL SUPER STRETCH | C175: MAZARINE BLUE | D175: 8718513026425 | E175: 29 | F175: =SUMIF('Data Sheet'!D:D,'Style & Size'!D175,'Data Sheet'!F:F) -> 1 | G175: 040898P035
A176: 3301 CONTOUR SKINNY WMN | B176: COMFORT BLACK EDINGTON DENIM | C176: 3D RAW | D176: 8718601264050 | E176: 29 | F176: =SUMIF('Data Sheet'!D:D,'Style & Size'!D176,'Data Sheet'!F:F) -> 2 | G176: 040898P035
A177: 3301 CONTOUR SKINNY WMN | B177: POWERSTRETCH TILEX BLACK | C177: RAW | D177: 8718512600640 | E177: 29 | F177: =SUMIF('Data Sheet'!D:D,'Style & Size'!D177,'Data Sheet'!F:F) -> 1 | G177: 040898P037
A178: 3301 CONTOUR SKINNY WMN | B178: COM BLACK VELI DENIM | C178: RAW | D178: 8718513226177 | E178: 29 | F178: =SUMIF('Data Sheet'!D:D,'Style & Size'!D178,'Data Sheet'!F:F) -> 4 | G178: 040898P037
A179: 3301 CONTOUR SKINNY WMN | B179: SLANDER BLACK SUPER STRETCH | C179: DARK AGED | D179: 8718601034448 | E179: 29 | F179: =SUMIF('Data Sheet'!D:D,'Style & Size'!D179,'Data Sheet'!F:F) -> 5 | G179: 040898P037
A180: 3301 CONTOUR SKINNY WMN | B180: COMFORT BLACK EDINGTON DENIM | C180: 3D RAW | D180: 8718601264166 | E180: 29 | F180: =SUMIF('Data Sheet'!D:D,'Style & Size'!D180,'Data Sheet'!F:F) -> 2 | G180: 040898P037
A181: 3301 CONTOUR SKINNY WMN | B181: L. SUPER STRETCH | C181: MED AGED | D181: 8718601265743 | E181: 29 | F181: =SUMIF('Data Sheet'!D:D,'Style & Size'!D181,'Data Sheet'!F:F) -> 1 | G181: 040898P037
A182: 3301 CONTOUR SKINNY WMN | B182: BRONX SUPER STRETCH TWILL OD | C182: DARK CARRIBEAN | D182: 8718512448693 | E182: 29 | F182: =SUMIF('Data Sheet'!D:D,'Style & Size'!D182,'Data Sheet'!F:F) -> 7 | G182: 040898P037
A183: 3301 CONTOUR SKINNY WMN | B183: COMFORT INOX DENIM | C183: DARK AGED | D183: 8718602969886 | E183: 29 | F183: =SUMIF('Data Sheet'!D:D,'Style & Size'!D183,'Data Sheet'!F:F) -> 1 | G183: 040898P037
A184: 3301 CONTOUR SKINNY WMN | B184: BLOSSOM SUPER STRETCH | C184: MED AGED DESTROY | D184: 8718512592976 | E184: 29 | F184: =SUMIF('Data Sheet'!D:D,'Style & Size'!D184,'Data Sheet'!F:F) -> 5 | G184: 040898P045
A185: 3301 CONTOUR SKINNY WMN | B185: COMFORT BLACK VALL DENIM | C185: RAW | D185: 8718513226061 | E185: 29 | F185: =SUMIF('Data Sheet'!D:D,'Style & Size'!D185,'Data Sheet'!F:F) -> 1 | G185: 040898P049
A186: 3301 CONTOUR SKINNY WMN | B186: L. SUPER STRETCH | C186: DARK AGED | D186: 8718601265095 | E186: 29 | F186: =SUMIF('Data Sheet'!D:D,'Style & Size'!D186,'Data Sheet'!F:F) -> 2 | G186: 040898P049
A187: 3301 CONTOUR SKINNY WMN | B187: SLANDER SUPER STRETCH | C187: DARK AGED | D187: 8718512600107 | E187: 29 | F187: =SUMIF('Data Sheet'!D:D,'Style & Size'!D187,'Data Sheet'!F:F) -> 1 | G187: 040898P056
A188: 3301 CONTOUR SKINNY WMN | B188: COMFORT RIDER DENIM | C188: MED AGED | D188: 8718354769345 | E188: 30 | F188: =SUMIF('Data Sheet'!D:D,'Style & Size'!D188,'Data Sheet'!F:F) -> 2 | G188: 040898P017
A189: 3301 CONTOUR SKINNY WMN | B189: POWERSTRETCH TILEX BLACK | C189: RAW | D189: 8718512600657 | E189: 30 | F189: =SUMIF('Data Sheet'!D:D,'Style & Size'!D189,'Data Sheet'!F:F) -> 2 | G189: 040898P017
A190: 3301 CONTOUR SKINNY WMN | B190: SLANDER BLACK SUPER STRETCH | C190: DARK AGED | D190: 8718601034455 | E190: 30 | F190: =SUMIF('Data Sheet'!D:D,'Style & Size'!D190,'Data Sheet'!F:F) -> 11 | G190: 040898P017
A191: 3301 CONTOUR SKINNY WMN | B191: L. SUPER STRETCH | C191: DARK AGED | D191: 8718601265217 | E191: 30 | F191: =SUMIF('Data Sheet'!D:D,'Style & Size'!D191,'Data Sheet'!F:F) -> 1 | G191: 040898P017
A192: 3301 CONTOUR SKINNY WMN | B192: SLANDER BLACK SUPER STRETCH | C192: DARK AGED | D192: 8718601034349 | E192: 30 | F192: =SUMIF('Data Sheet'!D:D,'Style & Size'!D192,'Data Sheet'!F:F) -> 1 | G192: 040898P019
A193: 3301 CONTOUR SKINNY WMN | B193: FRAKTO SUPER STRETCH | C193: MED AGED | D193: 8718601620559 | E193: 30 | F193: =SUMIF('Data Sheet'!D:D,'Style & Size'!D193,'Data Sheet'!F:F) -> 1 | G193: 040898P020
A194: 3301 CONTOUR SKINNY WMN | B194: ULTIMATE STRETCH SLANDER WHITE | C194: LT AGED | D194: 8718513678273 | E194: 30 | F194: =SUMIF('Data Sheet'!D:D,'Style & Size'!D194,'Data Sheet'!F:F) -> 13 | G194: 040898P021
A195: 3301 CONTOUR SKINNY WMN | B195: COMFORT BLACK VALL DENIM | C195: RAW | D195: 8718513226191 | E195: 31 | F195: =SUMIF('Data Sheet'!D:D,'Style & Size'!D195,'Data Sheet'!F:F) -> 4 | G195: 040898P025
A196: 3301 CONTOUR SKINNY WMN | B196: COMFORT BLACK VALL DENIM | C196: RAW | D196: 8718513226207 | E196: 31 | F196: =SUMIF('Data Sheet'!D:D,'Style & Size'!D196,'Data Sheet'!F:F) -> 1 | G196: 040898P025
A197: 3301 CONTOUR SKINNY WMN | B197: ULTIMATE STRETCH SLANDER WHITE | C197: LT AGED | D197: 8718513678280 | E197: 31 | F197: =SUMIF('Data Sheet'!D:D,'Style & Size'!D197,'Data Sheet'!F:F) -> 2 | G197: 040898P025
A198: 3301 CONTOUR SKINNY WMN | B198: SLANDER BLACK SUPER STRETCH | C198: DARK AGED | D198: 8718601034462 | E198: 31 | F198: =SUMIF('Data Sheet'!D:D,'Style & Size'!D198,'Data Sheet'!F:F) -> 7 | G198: 040898P025
A199: 3301 CONTOUR SKINNY WMN | B199: L. SUPER STRETCH | C199: MED AGED | D199: 8718601265767 | E199: 31 | F199: =SUMIF('Data Sheet'!D:D,'Style & Size'!D199,'Data Sheet'!F:F) -> 2 | G199: 040898P025
A200: 3301 CONTOUR SKINNY WMN | B200: COMFORT BAKER DENIM | C200: RAW | D200: 8718513359448 | E200: 31 | F200: =SUMIF('Data Sheet'!D:D,'Style & Size'!D200,'Data Sheet'!F:F) -> 3 | G200: 040898P034
... 4721 more rows

Sheet Data Sheet
A1: Style | B1: Qlt | C1: Colour | D1: Barcode | E1: Size | F1: Pcs | G1: Drager | H1: FIT
A2: 3301 SKINNY WMN | B2: COMFORT CORAL TWILL OD | C2: LT AUBURN | D2: 8718512664581 | E2: 25 | F2: 1 | G2: 040898P062 | H2: 0
A3: 3301 SKINNY WMN | B3: COMFORT CORAL TWILL OD | C3: LT AUBURN | D3: 8718512664581 | E3: 25 | F3: 1 | G3: 040898P062 | H3: 0
A4: 3301 SKINNY WMN | B4: COMFORT CORAL TWILL OD | C4: LT AUBURN | D4: 8718512664581 | E4: 25 | F4: 1 | G4: 040898P062 | H4: 0
A5: 3301 SKINNY WMN | B5: COMFORT CORAL TWILL OD | C5: LT AUBURN | D5: 8718512664581 | E5: 25 | F5: 1 | G5: 040898P062 | H5: 0
A6: 3301 SKINNY WMN | B6: COMFORT CORAL TWILL OD | C6: LT AUBURN | D6: 8718512664581 | E6: 25 | F6: 1 | G6: 040898P062 | H6: 0
A7: 3301 SKINNY WMN | B7: COMFORT CORAL TWILL OD | C7: LT AUBURN | D7: 8718512664581 | E7: 25 | F7: 1 | G7: 040898P062 | H7: 0
A8: 3301 90'S TAPERED WMN | B8: SCATTER DENIM | C8: MED AGED SP | D8: 8718602951171 | E8: 28 | F8: 1 | G8: 040898P039 | H8: Boyfriend
A9: 3301 90'S TAPERED WMN | B9: SCATTER DENIM | C9: MED AGED SP | D9: 8718602951171 | E9: 28 | F9: 1 | G9: 040898P039 | H9: Boyfriend
A10: 3301 90'S TAPERED WMN | B10: SCATTER DENIM | C10: MED AGED SP | D10: 8718602951072 | E10: 29 | F10: 1 | G10: 040898P035 | H10: Boyfriend
A11: 3301 A LOW SUPER SKINNY WMN | B11: BRANTLEY STRETCH DENIM | C11: MED AGED | D11: 8718599727391 | E11: 25 | F11: 1 | G11: 040898P008 | H11: Skinny
A12: 3301 A LOW SUPER SKINNY WMN | B12: LT WT RYDELL DENIM | C12: MED AGED | D12: 8718353050185 | E12: 25 | F12: 1 | G12: 040898P008 | H12: Tapered
A13: 3301 A LOW SUPER SKINNY WMN | B13: LT WT RYDELL DENIM | C13: MED AGED | D13: 8718353050185 | E13: 25 | F13: 1 | G13: 040898P008 | H13: Tapered
A14: 3301 A LOW SUPER SKINNY WMN | B14: LT WT RYDELL DENIM | C14: MED AGED | D14: 8718353050185 | E14: 25 | F14: 1 | G14: 040898P008 | H14: Tapered
A15: 3301 A LOW SUPER SKINNY WMN | B15: LT WT RYDELL DENIM | C15: MED AGED | D15: 8718353050185 | E15: 25 | F15: 1 | G15: 040898P008 | H15: Tapered
A16: 3301 A LOW SUPER SKINNY WMN | B16: LT WT RYDELL DENIM | C16: MED AGED | D16: 8718353050185 | E16: 25 | F16: 1 | G16: 040898P008 | H16: Tapered
A17: 3301 A LOW SUPER SKINNY WMN | B17: RIDSED | C17: DISTRO SUPERSTRETCH | D17: 8718603013991 | E17: 25 | F17: 1 | G17: 040898P024 | H17: Tapered
A18: 3301 A LOW SUPER SKINNY WMN | B18: BRANTLEY STRETCH DENIM | C18: MED AGED | D18: 8718599727599 | E18: 28 | F18: 1 | G18: 040898P015 | H18: Skinny
A19: 3301 A LOW SUPER SKINNY WMN | B19: BRANTLEY STRETCH DENIM | C19: MED AGED | D19: 8718599727599 | E19: 28 | F19: 1 | G19: 040898P015 | H19: Skinny
A20: 3301 A LOW SUPER SKINNY WMN | B20: BRANTLEY STRETCH DENIM | C20: MED AGED | D20: 8718599727599 | E20: 28 | F20: 1 | G20: 040898P015 | H20: Skinny
A21: 3301 A LOW SUPER SKINNY WMN | B21: BRANTLEY STRETCH DENIM | C21: MED AGED | D21: 8718599727599 | E21: 28 | F21: 1 | G21: 040898P015 | H21: Skinny
A22: 3301 A LOW SUPER SKINNY WMN | B22: BRANTLEY STRETCH DENIM | C22: MED AGED | D22: 8718599727599 | E22: 28 | F22: 1 | G22: 040898P015 | H22: Skinny
A23: 3301 A LOW SUPER SKINNY WMN | B23: BRANTLEY STRETCH DENIM | C23: MED AGED | D23: 8718599727599 | E23: 28 | F23: 1 | G23: 040898P015 | H23: Skinny
A24: 3301 A LOW SUPER SKINNY WMN | B24: BRANTLEY STRETCH DENIM | C24: MED AGED | D24: 8718599727599 | E24: 28 | F24: 1 | G24: 040898P015 | H24: Skinny
A25: 3301 A LOW SUPER SKINNY WMN | B25: BRANTLEY STRETCH DENIM | C25: MED AGED | D25: 8718599725427 | E25: 29 | F25: 1 | G25: 040898P035 | H25: Skinny
A26: 3301 A LOW SUPER SKINNY WMN | B26: BRANTLEY STRETCH DENIM | C26: MED AGED | D26: 8718599727032 | E26: 29 | F26: 1 | G26: 040898P037 | H26: Skinny
A27: 3301 A LOW SUPER SKINNY WMN | B27: BRANTLEY STRETCH DENIM | C27: MED AGED | D27: 8718599725045 | E27: 30 | F27: 1 | G27: 040898P017 | H27: Skinny
A28: 3301 A LOW SUPER SKINNY WMN | B28: BRANTLEY STRETCH DENIM | C28: MED AGED | D28: 8718599727629 | E28: 30 | F28: 1 | G28: 040898P021 | H28: Skinny
A29: 3301 A LOW SUPER SKINNY WMN | B29: BRANTLEY STRETCH DENIM | C29: MED AGED | D29: 8718599727049 | E29: 31 | F29: 1 | G29: 040898P025 | H29: Skinny
A30: 3301 A LOW SUPER SKINNY WMN | B30: BRANTLEY STRETCH DENIM | C30: MED AGED | D30: 8718599727049 | E30: 31 | F30: 1 | G30: 040898P025 | H30: Skinny
A31: 3301 A LOW SUPER SKINNY WMN | B31: BRANTLEY STRETCH DENIM | C31: MED AGED | D31: 8718599727049 | E31: 31 | F31: 1 | G31: 040898P025 | H31: Skinny
A32: 3301 A LOW SUPER SKINNY WMN | B32: BRANTLEY STRETCH DENIM | C32: MED AGED | D32: 8718599727049 | E32: 31 | F32: 1 | G32: 040898P025 | H32: Skinny
A33: 3301 A LOW SUPER SKINNY WMN | B33: BRANTLEY STRETCH DENIM | C33: MED AGED | D33: 8718599727049 | E33: 31 | F33: 1 | G33: 040898P025 | H33: Skinny
A34: 3301 A LOW SUPER SKINNY WMN | B34: BRANTLEY STRETCH DENIM | C34: MED AGED | D34: 8718599727452 | E34: 31 | F34: 1 | G34: 040898P025 | H34: Skinny
A35: 3301 BELL CUT WMN | B35: COMFORT PONTE DENIM | C35: TRACK WASH | D35: 8718002104832 | E35: 24 | F35: 1 | G35: 040898P071 | H35: Boot
A36: 3301 BELL CUT WMN | B36: COMFORT PONTE WMN | C36: TRACK WASH | D36: 8718002104849 | E36: 26 | F36: 1 | G36: 040898P066 | H36: Boot
A37: 3301 BELL CUT WMN | B37: COMFORT PONTE WMN | C37: TRACK WASH | D37: 8718002104849 | E37: 26 | F37: 1 | G37: 040898P066 | H37: Boot
A38: 3301 BELL CUT WMN | B38: COMFORT PONTE DENIM | C38: TRACK WASH | D38: 8718002104863 | E38: 27 | F38: 1 | G38: 040898P069 | H38: Boot
A39: 3301 BELL CUT WMN | B39: COMFORT PONTE DENIM | C39: TRACK WASH | D39: 8718002104863 | E39: 27 | F39: 1 | G39: 040898P069 | H39: Boot
A40: 3301 BELL CUT WMN | B40: COMFORT PONTE DENIM | C40: TRACK WASH | D40: 8718002104962 | E40: 27 | F40: 1 | G40: 040898P069 | H40: Boot
A41: 3301 BELL CUTT WMN | B41: COMFORT PONTE DENIM | C41: TRACK WASH | D41: 8718002104726 | E41: 24 | F41: 1 | G41: 040898P071 | H41: Boot
A42: 3301 BELLCUT CHINO WMN | B42: COMFORT MAVER DENIM | C42: 3D VINTAGE | D42: 8718003291920 | E42: 27 | F42: 1 | G42: 040898P044 | H42: Boot
A43: 3301 BELLCUT CHINO WMN | B43: COMFORT ASTON DENIM | C43: LT AGED | D43: 8718002664381 | E43: 27 | F43: 1 | G43: 040898P060 | H43: Boot
A44: 3301 BELLCUT CHINO WMN | B44: HARVARD TWILL | C44: BLACK | D44: 8718003519468 | E44: 29 | F44: 1 | G44: 040898P061 | H44: 0
A45: 3301 BELLCUT WMN | B45: COMFORT PONTE DENIM | C45: TRACK WASH | D45: 8718003854255 | E45: 27 | F45: 1 | G45: 040898P040 | H45: Boot
A46: 3301 BELLCUT WMN | B46: COMFORT ROAD DENIM | C46: TRACK WORN IN | D46: 8718098403987 | E46: 27 | F46: 1 | G46: 040898P040 | H46: Boot
A47: 3301 BELLCUT WMN | B47: STAGER DENIM | C47: VINTAGE DESTROY | D47: 8717922550965 | E47: 27 | F47: 1 | G47: 040898P044 | H47: Boot
A48: 3301 BELLCUT WMN | B48: COMFORT ASPEN DENIM | C48: DARK AGED | D48: 8718002658984 | E48: 27 | F48: 1 | G48: 040898P044 | H48: Boot
A49: 3301 BELLCUT WMN | B49: COMFORT DEEPTONE DENIM | C49: RAW | D49: 8717831944961 | E49: 28 | F49: 1 | G49: 040898P048 | H49: Boot
A50: 3301 BOOLTEG WMN | B50: COMFORT GRAFFIT DENIM | C50: DARK AGED | D50: 8718353936236 | E50: 29 | F50: 1 | G50: 040898P056 | H50: Boot
A51: 3301 BOOTLEG WMN | B51: COMFORT SKART DENIM | C51: DARK AGED | D51: 8718601064261 | E51: 23 | F51: 1 | G51: 040898P002 | H51: Boot
A52: 3301 BOOTLEG WMN | B52: COMFORT BAKER DENIM | C52: RAW | D52: 8718513394296 | E52: 23 | F52: 1 | G52: 040898P002 | H52: Boot
A53: 3301 BOOTLEG WMN | B53: ITO SUPERSTRETCH | C53: RAW | D53: 8718201232800 | E53: 24 | F53: 1 | G53: 24040898PO063 | H53: Boot
A54: 3301 BOOTLEG WMN | B54: ITO SUPERSTRETCH | C54: RAW | D54: 8718201232800 | E54: 24 | F54: 1 | G54: 24040898PO063 | H54: Boot
A55: 3301 BOOTLEG WMN | B55: LTO SUPER STRETCH | C55: RAW DENIM | D55: 8718201232725 | E55: 27 | F55: 1 | G55: 040898P044 | H55: Boot
A56: 3301 BOOTLEG WMN | B56: COMFORT D.I.DENIM | C56: RUGBY WASH | D56: 8718201231766 | E56: 28 | F56: 1 | G56: 040898P022 | H56: Boot
A57: 3301 BOOTLEG WMN | B57: COMFORT D.I.DENIM | C57: RUGBY WASH | D57: 8718201231766 | E57: 28 | F57: 1 | G57: 040898P022 | H57: Boot
A58: 3301 BOOTLEG WMN | B58: COMFORT GRAFFIT DENIM | C58: DARK AGED | D58: 8718353936229 | E58: 28 | F58: 1 | G58: 040898P050 | H58: Boot
A59: 3301 BOOTLEG WMN | B59: COMFORT GRAFFIT DENIM | C59: DARK AGED | D59: 8718353936229 | E59: 28 | F59: 1 | G59: 040898P050 | H59: Boot
A60: 3301 BOOTLEG WMN | B60: COMFORT ARCTIC DENIM | C60: TUMBLE RAW | D60: 8718353069897 | E60: 30 | F60: 1 | G60: 040898P017 | H60: Boot
A61: 3301 BOOTLEG WMN | B61: COMFORT ARCTIC DENIM | C61: TUMBLE RAW | D61: 8718353069897 | E61: 30 | F61: 1 | G61: 040898P017 | H61: Boot
A62: 3301 BOOTLEG WMN | B62: GLAZE SUPER STRETCH | C62: DARK AGED | D62: 8718354760984 | E62: 30 | F62: 1 | G62: 040898P017 | H62: Boot
A63: 3301 BOOTLEG WMN | B63: GLAZE SUPER STRETCH | C63: DARK AGED | D63: 8718354760984 | E63: 30 | F63: 1 | G63: 040898P017 | H63: Boot
A64: 3301 CHINO LOOSE TAPERED COJ WMN | B64: COMFORT ULTRA TWILL | C64: DARK PAPER BROWN | D64: 8718353746163 | E64: 26 | F64: 1 | G64: 040898P016 | H64: 0
A65: 3301 CHINO WMN STRAIGHT | B65: COMFORT CARE DENIM | C65: RAW | D65: 8718002662448 | E65: 27 | F65: 1 | G65: 040898P060 | H65: Straight
A66: 3301 COMFORT SKINNY WMN | B66: ULTIMATE STRETCH CELLO | C66: VINTAGE AGED COBLER | D66: 8718513357918 | E66: 29 | F66: 1 | G66: 040898P037 | H66: Slim
A67: 3301 COMFORT SKINNY WMN | B67: ULTIMATE STRETCH CELLO | C67: VINTAGE AGED COBLER | D67: 8718513357918 | E67: 29 | F67: 1 | G67: 040898P056 | H67: Slim
A68: 3301 COMFORT SKINNY WMN | B68: SLANDER BLACK SUPER STRETCH | C68: DARK AGED | D68: 8718601034479 | E68: 32 | F68: 1 | G68: 040898P046 | H68: Skinny
A69: 3301 COMFORT SKINNY WMN | B69: SLANDER BLACK SUPER STRETCH | C69: DARK AGED | D69: 8718601034479 | E69: 32 | F69: 1 | G69: 040898P046 | H69: Skinny
A70: 3301 CONTOUR BELL WMN | B70: ULTIMATE STRETCH | C70: SLANDER WHITE | D70: 8718513285709 | E70: 26 | F70: 1 | G70: 040898P012 | H70: 0
A71: 3301 CONTOUR BELL WMN | B71: ULTIMATE STRETCH | C71: SLANDER WHITE | D71: 8718513285709 | E71: 26 | F71: 1 | G71: 040898P012 | H71: 0
A72: 3301 CONTOUR BELL WMN | B72: ULTIMATE STRETCH | C72: SLANDER WHITE | D72: 8718513285709 | E72: 26 | F72: 1 | G72: 040898P012 | H72: 0
A73: 3301 CONTOUR BELL WMN | B73: ULTIMATE STRETCH | C73: SLANDER WHITE | D73: 8718513285709 | E73: 26 | F73: 1 | G73: 040898P012 | H73: 0
A74: 3301 CONTOUR BELL WMN | B74: ULTIMATE STRETCH | C74: SLANDER WHITE | D74: 8718513285709 | E74: 26 | F74: 1 | G74: 040898P012 | H74: 0
A75: 3301 CONTOUR BELL WMN | B75: ULTIMATE STRETCH | C75: SLANDER WHITE | D75: 8718513285709 | E75: 26 | F75: 1 | G75: 040898P012 | H75: 0
A76: 3301 CONTOUR BELL WMN | B76: ULTIMATE STRETCH | C76: SLANDER WHITE | D76: 8718513285709 | E76: 26 | F76: 1 | G76: 040898P012 | H76: 0
A77: 3301 CONTOUR HIGH SKINNY WMN | B77: SLANDER BLACK SUPERSTRETCH | C77: DK AGED | D77: 8718602697147 | E77: 23 | F77: 1 | G77: 040898P071 | H77: Skinny
A78: 3301 CONTOUR HIGH SKINNY WMN | B78: SLANDER BLACK SUPERSTRETCH | C78: DK AGED | D78: 8718602697147 | E78: 23 | F78: 1 | G78: 040898P071 | H78: Skinny
A79: 3301 CONTOUR HIGH SKINNY WMN | B79: SLANDER BLACK SUPERSTRETCH | C79: DK AGED | D79: 8718602697147 | E79: 23 | F79: 1 | G79: 040898P071 | H79: Skinny
A80: 3301 CONTOUR HIGH SKINNY WMN | B80: SLANDER BLACK SUPERSTRETCH | C80: DK AGED | D80: 8718602697147 | E80: 23 | F80: 1 | G80: 040898P071 | H80: Skinny
A81: 3301 CONTOUR HIGH SKINNY WMN | B81: SLANDER BLACK SUPERSTRETCH | C81: DK AGED | D81: 8718602697147 | E81: 23 | F81: 1 | G81: 040898P071 | H81: Skinny
A82: 3301 CONTOUR HIGH SKINNY WMN | B82: SLANDER BLACK SUPERSTRETCH | C82: DK AGED | D82: 8718602697147 | E82: 23 | F82: 1 | G82: 040898P071 | H82: Skinny
A83: 3301 CONTOUR HIGH SKINNY WMN | B83: SLANDER BLACK SUPERSTRETCH | C83: DK AGED | D83: 8718602697154 | E83: 23 | F83: 1 | G83: 040898P071 | H83: Skinny
A84: 3301 CONTOUR HIGH SKINNY WMN | B84: NIPPON SUPERSTRETCH | C84: MED AGED | D84: 8718602693712 | E84: 23 | F84: 1 | G84: 040898P071 | H84: Skinny
A85: 3301 CONTOUR HIGH SKINNY WMN | B85: NIPPON SUPERSTRETCH | C85: MED AGED | D85: 8718602693712 | E85: 23 | F85: 1 | G85: 040898P071 | H85: Skinny
A86: 3301 CONTOUR HIGH SKINNY WMN | B86: NIPPON SUPERSTRETCH | C86: MED AGED | D86: 8718602693712 | E86: 23 | F86: 1 | G86: 040898P071 | H86: Skinny
A87: 3301 CONTOUR HIGH SKINNY WMN | B87: NIPPON SUPERSTRETCH | C87: MED AGED | D87: 8718602693712 | E87: 23 | F87: 1 | G87: 040898P071 | H87: Skinny
A88: 3301 CONTOUR HIGH SKINNY WMN | B88: NIPPON SUPERSTRETCH | C88: MED AGED | D88: 8718602693712 | E88: 23 | F88: 1 | G88: 040898P071 | H88: Skinny
A89: 3301 CONTOUR HIGH SKINNY WMN | B89: NIPPON SUPERSTRETCH | C89: MED AGED | D89: 8718602693712 | E89: 23 | F89: 1 | G89: 040898P071 | H89: Skinny
A90: 3301 CONTOUR HIGH SKINNY WMN | B90: NIPPON SUPERSTRETCH | C90: MED AGED | D90: 8718602693712 | E90: 23 | F90: 1 | G90: 040898P071 | H90: Skinny
A91: 3301 CONTOUR HIGH SKINNY WMN | B91: NIPPON SUPERSTRETCH | C91: MED AGED | D91: 8718602693712 | E91: 23 | F91: 1 | G91: 040898P071 | H91: Skinny
A92: 3301 CONTOUR HIGH SKINNY WMN | B92: NIPPON SUPERSTRETCH | C92: MED AGED | D92: 8718602693712 | E92: 23 | F92: 1 | G92: 040898P071 | H92: Skinny
A93: 3301 CONTOUR HIGH SKINNY WMN | B93: NIPPON SUPERSTRETCH | C93: MED AGED | D93: 8718602693712 | E93: 23 | F93: 1 | G93: 040898P071 | H93: Skinny
A94: 3301 CONTOUR HIGH SKINNY WMN | B94: NIPPON SUPERSTRETCH | C94: MED AGED | D94: 8718602693712 | E94: 23 | F94: 1 | G94: 040898P071 | H94: Skinny
A95: 3301 CONTOUR HIGH SKINNY WMN | B95: BENWICK STRETCH DENIM | C95: DARK AGED | D95: 8718602605333 | E95: 24 | F95: 1 | G95: 040898P003 | H95: Skinny
A96: 3301 CONTOUR HIGH SKINNY WMN | B96: VISOR STRETCH DENIM | C96: DARK AGED | D96: 8718602760261 | E96: 24 | F96: 1 | G96: 040898P003 | H96: Straight
A97: 3301 CONTOUR HIGH SKINNY WMN | B97: VISOR STRETCH DENIM | C97: DARK AGED | D97: 8718602760261 | E97: 24 | F97: 1 | G97: 040898P003 | H97: Straight
A98: 3301 CONTOUR HIGH SKINNY WMN | B98: VISOR STRETCH DENIM | C98: DARK AGED | D98: 8718602760261 | E98: 24 | F98: 1 | G98: 040898P003 | H98: Straight
A99: 3301 CONTOUR HIGH SKINNY WMN | B99: VISOR STRETCH DENIM | C99: DARK AGED | D99: 8718602760261 | E99: 24 | F99: 1 | G99: 040898P003 | H99: Straight
A100: 3301 CONTOUR HIGH SKINNY WMN | B100: SLANDER SUPER STRETCH | C100: DARK AGED | D100: 8718602688510 | E100: 24 | F100: 1 | G100: 040898P003 | H100: Skinny
A101: 3301 CONTOUR HIGH SKINNY WMN | B101: SLANDER SUPER STRETCH | C101: DARK AGED | D101: 8718602688510 | E101: 24 | F101: 1 | G101: 040898P003 | H101: Skinny
A102: 3301 CONTOUR HIGH SKINNY WMN | B102: SLANDER SUPER STRETCH | C102: DARK AGED | D102: 8718602688510 | E102: 24 | F102: 1 | G102: 040898P003 | H102: Skinny
A103: 3301 CONTOUR HIGH SKINNY WMN | B103: SLANDER SUPER STRETCH | C103: DARK AGED | D103: 8718602688510 | E103: 24 | F103: 1 | G103: 040898P003 | H103: Skinny
A104: 3301 CONTOUR HIGH SKINNY WMN | B104: SLANDER SUPER STRETCH | C104: DARK AGED | D104: 8718602688510 | E104: 24 | F104: 1 | G104: 040898P003 | H104: Skinny
A105: 3301 CONTOUR HIGH SKINNY WMN | B105: SLANDER SUPER STRETCH | C105: DARK AGED | D105: 8718602688510 | E105: 24 | F105: 1 | G105: 040898P003 | H105: Skinny
A106: 3301 CONTOUR HIGH SKINNY WMN | B106: SLANDER SUPER STRETCH | C106: DARK AGED | D106: 8718602688510 | E106: 24 | F106: 1 | G106: 040898P003 | H106: Skinny
A107: 3301 CONTOUR HIGH SKINNY WMN | B107: SLANDER SUPER STRETCH | C107: DARK AGED | D107: 8718602688510 | E107: 24 | F107: 1 | G107: 040898P003 | H107: Skinny
A108: 3301 CONTOUR HIGH SKINNY WMN | B108: SLANDER SUPER STRETCH | C108: DARK AGED | D108: 8718602688510 | E108: 24 | F108: 1 | G108: 040898P003 | H108: Skinny
A109: 3301 CONTOUR HIGH SKINNY WMN | B109: FRAKTO SUPER STRETCH | C109: MED AGED | D109: 8718601607413 | E109: 24 | F109: 1 | G109: 040898P006 | H109: Skinny
A110: 3301 CONTOUR HIGH SKINNY WMN | B110: FRAKTO SUPER STRETCH | C110: MED AGED | D110: 8718601620498 | E110: 24 | F110: 1 | G110: 040898P006 | H110: Slim
A111: 3301 CONTOUR HIGH SKINNY WMN | B111: HYTO BLACK SUPER STRETCH | C111: COBLER DIP WASH | D111: 8718601935615 | E111: 24 | F111: 1 | G111: 040898P006 | H111: Straight
A112: 3301 CONTOUR HIGH SKINNY WMN | B112: HYTO BLACK SUPER STRETCH | C112: COBLER DIP WASH | D112: 8718601935615 | E112: 24 | F112: 1 | G112: 040898P006 | H112: Straight
A113: 3301 CONTOUR HIGH SKINNY WMN | B113: HYTO BLACK SUPER STRETCH | C113: COBLER DIP WASH | D113: 8718601935615 | E113: 24 | F113: 1 | G113: 040898P006 | H113: Straight
A114: 3301 CONTOUR HIGH SKINNY WMN | B114: HYTO BLACK SUPER STRETCH | C114: COBLER DIP WASH | D114: 8718601935615 | E114: 24 | F114: 1 | G114: 040898P006 | H114: Straight
A115: 3301 CONTOUR HIGH SKINNY WMN | B115: HYTO BLACK SUPER STRETCH | C115: COBLER DIP WASH | D115: 8718601935615 | E115: 24 | F115: 1 | G115: 040898P006 | H115: Straight
A116: 3301 CONTOUR HIGH SKINNY WMN | B116: VISOR STRETCH DENIM | C116: DARK AGED | D116: 8718602760155 | E116: 24 | F116: 1 | G116: 040898P006 | H116: Straight
A117: 3301 CONTOUR HIGH SKINNY WMN | B117: VISOR STRETCH DENIM | C117: DARK AGED | D117: 8718602760155 | E117: 24 | F117: 1 | G117: 040898P006 | H117: Straight
A118: 3301 CONTOUR HIGH SKINNY WMN | B118: VISOR STRETCH DENIM | C118: DARK AGED | D118: 8718602760155 | E118: 24 | F118: 1 | G118: 040898P006 | H118: Straight
A119: 3301 CONTOUR HIGH SKINNY WMN | B119: VISOR STRETCH DENIM | C119: DARK AGED | D119: 8718602760155 | E119: 24 | F119: 1 | G119: 040898P006 | H119: Straight
A120: 3301 CONTOUR HIGH SKINNY WMN | B120: VISOR STRETCH DENIM | C120: DARK AGED | D120: 8718602760155 | E120: 24 | F120: 1 | G120: 040898P006 | H120: Straight
A121: 3301 CONTOUR HIGH SKINNY WMN | B121: VISOR STRETCH DENIM | C121: DARK AGED | D121: 8718602760155 | E121: 24 | F121: 1 | G121: 040898P006 | H121: Straight
A122: 3301 CONTOUR HIGH SKINNY WMN | B122: VISOR STRETCH DENIM | C122: DARK AGED | D122: 8718602760155 | E122: 24 | F122: 1 | G122: 040898P006 | H122: Straight
A123: 3301 CONTOUR HIGH SKINNY WMN | B123: SLANDER BLACK SUPERSTRETCH | C123: DK AGED | D123: 8718602687650 | E123: 24 | F123: 1 | G123: 24040898PO063 | H123: Skinny
A124: 3301 CONTOUR HIGH SKINNY WMN | B124: SLANDER BLACK SUPERSTRETCH | C124: DK AGED | D124: 8718602687759 | E124: 24 | F124: 1 | G124: 24040898PO063 | H124: Skinny
A125: 3301 CONTOUR HIGH SKINNY WMN | B125: SLANDER BLACK SUPERSTRETCH | C125: DK AGED | D125: 8718602687759 | E125: 24 | F125: 1 | G125: 24040898PO063 | H125: Skinny
A126: 3301 CONTOUR HIGH SKINNY WMN | B126: SLANDER BLACK SUPERSTRETCH | C126: DK AGED | D126: 8718602687759 | E126: 24 | F126: 1 | G126: 24040898PO063 | H126: Skinny
A127: 3301 CONTOUR HIGH SKINNY WMN | B127: SLANDER BLACK SUPERSTRETCH | C127: DK AGED | D127: 8718602687759 | E127: 24 | F127: 1 | G127: 24040898PO063 | H127: Skinny
A128: 3301 CONTOUR HIGH SKINNY WMN | B128: SLANDER BLACK SUPERSTRETCH | C128: DK AGED | D128: 8718602687759 | E128: 24 | F128: 1 | G128: 24040898PO063 | H128: Skinny
A129: 3301 CONTOUR HIGH SKINNY WMN | B129: SLANDER BLACK SUPERSTRETCH | C129: DK AGED | D129: 8718602687759 | E129: 24 | F129: 1 | G129: 24040898PO063 | H129: Skinny
A130: 3301 CONTOUR HIGH SKINNY WMN | B130: SLANDER BLACK SUPERSTRETCH | C130: DK AGED | D130: 8718602687759 | E130: 24 | F130: 1 | G130: 24040898PO063 | H130: Skinny
A131: 3301 CONTOUR HIGH SKINNY WMN | B131: SLANDER BLACK SUPERSTRETCH | C131: DK AGED | D131: 8718602687759 | E131: 24 | F131: 1 | G131: 24040898PO063 | H131: Skinny
A132: 3301 CONTOUR HIGH SKINNY WMN | B132: SLANDER BLACK SUPERSTRETCH | C132: DK AGED | D132: 8718602687759 | E132: 24 | F132: 1 | G132: 24040898PO063 | H132: Skinny
A133: 3301 CONTOUR HIGH SKINNY WMN | B133: SLANDER BLACK SUPERSTRETCH | C133: DK AGED | D133: 8718602687759 | E133: 24 | F133: 1 | G133: 24040898PO063 | H133: Skinny
A134: 3301 CONTOUR HIGH SKINNY WMN | B134: SLANDER BLACK SUPERSTRETCH | C134: DK AGED | D134: 8718602687759 | E134: 24 | F134: 1 | G134: 24040898PO063 | H134: Skinny
A135: 3301 CONTOUR HIGH SKINNY WMN | B135: SLANDER BLACK SUPERSTRETCH | C135: DK AGED | D135: 8718602687759 | E135: 24 | F135: 1 | G135: 24040898PO063 | H135: Skinny
A136: 3301 CONTOUR HIGH SKINNY WMN | B136: SLANDER BLACK SUPERSTRETCH | C136: DK AGED | D136: 8718602687759 | E136: 24 | F136: 1 | G136: 24040898PO063 | H136: Skinny
A137: 3301 CONTOUR HIGH SKINNY WMN | B137: SLANDER BLACK SUPERSTRETCH | C137: DK AGED | D137: 8718602687759 | E137: 24 | F137: 1 | G137: 24040898PO063 | H137: Skinny
A138: 3301 CONTOUR HIGH SKINNY WMN | B138: SLANDER BLACK SUPERSTRETCH | C138: DK AGED | D138: 8718602687759 | E138: 24 | F138: 1 | G138: 24040898PO063 | H138: Skinny
A139: 3301 CONTOUR HIGH SKINNY WMN | B139: SLANDER BLACK SUPERSTRETCH | C139: DK AGED | D139: 8718602687759 | E139: 24 | F139: 1 | G139: 24040898PO063 | H139: Skinny
A140: 3301 CONTOUR HIGH SKINNY WMN | B140: SLANDER BLACK SUPERSTRETCH | C140: DK AGED | D140: 8718602687759 | E140: 24 | F140: 1 | G140: 24040898PO063 | H140: Skinny
A141: 3301 CONTOUR HIGH SKINNY WMN | B141: NIPPON SUPERSTRETCH | C141: MED AGED | D141: 8718602585017 | E141: 24 | F141: 1 | G141: 24040898PO063 | H141: Skinny
A142: 3301 CONTOUR HIGH SKINNY WMN | B142: NIPPON SUPERSTRETCH | C142: MED AGED | D142: 8718602585017 | E142: 24 | F142: 1 | G142: 24040898PO063 | H142: Skinny
A143: 3301 CONTOUR HIGH SKINNY WMN | B143: NIPPON SUPERSTRETCH | C143: MED AGED | D143: 8718602585017 | E143: 24 | F143: 1 | G143: 24040898PO063 | H143: Skinny
A144: 3301 CONTOUR HIGH SKINNY WMN | B144: NIPPON SUPERSTRETCH | C144: MED AGED | D144: 8718602585017 | E144: 24 | F144: 1 | G144: 24040898PO063 | H144: Skinny
A145: 3301 CONTOUR HIGH SKINNY WMN | B145: NIPPON SUPERSTRETCH | C145: MED AGED | D145: 8718602585017 | E145: 24 | F145: 1 | G145: 24040898PO063 | H145: Skinny
A146: 3301 CONTOUR HIGH SKINNY WMN | B146: NIPPON SUPERSTRETCH | C146: MED AGED | D146: 8718602585017 | E146: 24 | F146: 1 | G146: 24040898PO063 | H146: Skinny
A147: 3301 CONTOUR HIGH SKINNY WMN | B147: NIPPON SUPERSTRETCH | C147: MED AGED | D147: 8718602585017 | E147: 24 | F147: 1 | G147: 24040898PO063 | H147: Skinny
A148: 3301 CONTOUR HIGH SKINNY WMN | B148: NIPPON SUPERSTRETCH | C148: MED AGED | D148: 8718602585017 | E148: 24 | F148: 1 | G148: 24040898PO063 | H148: Skinny
A149: 3301 CONTOUR HIGH SKINNY WMN | B149: NIPPON SUPERSTRETCH | C149: MED AGED | D149: 8718602585017 | E149: 24 | F149: 1 | G149: 24040898PO063 | H149: Skinny
A150: 3301 CONTOUR HIGH SKINNY WMN | B150: NIPPON SUPERSTRETCH | C150: MED AGED | D150: 8718602585017 | E150: 24 | F150: 1 | G150: 24040898PO063 | H150: Skinny
A151: 3301 CONTOUR HIGH SKINNY WMN | B151: NIPPON SUPERSTRETCH | C151: MED AGED | D151: 8718602585017 | E151: 24 | F151: 1 | G151: 24040898PO063 | H151: Skinny
A152: 3301 CONTOUR HIGH SKINNY WMN | B152: NIPPON SUPERSTRETCH | C152: MED AGED | D152: 8718602585017 | E152: 24 | F152: 1 | G152: 24040898PO063 | H152: Skinny
A153: 3301 CONTOUR HIGH SKINNY WMN | B153: NIPPON SUPERSTRETCH | C153: MED AGED | D153: 8718602585017 | E153: 24 | F153: 1 | G153: 24040898PO063 | H153: Skinny
A154: 3301 CONTOUR HIGH SKINNY WMN | B154: NIPPON SUPERSTRETCH | C154: MED AGED | D154: 8718602585017 | E154: 24 | F154: 1 | G154: 24040898PO063 | H154: Skinny
A155: 3301 CONTOUR HIGH SKINNY WMN | B155: NIPPON SUPERSTRETCH | C155: MED AGED | D155: 8718602585017 | E155: 24 | F155: 1 | G155: 24040898PO063 | H155: Skinny
A156: 3301 CONTOUR HIGH SKINNY WMN | B156: NIPPON SUPERSTRETCH | C156: MED AGED | D156: 8718602585017 | E156: 24 | F156: 1 | G156: 24040898PO063 | H156: Skinny
A157: 3301 CONTOUR HIGH SKINNY WMN | B157: NIPPON SUPERSTRETCH | C157: MED AGED | D157: 8718602585017 | E157: 24 | F157: 1 | G157: 24040898PO063 | H157: Skinny
A158: 3301 CONTOUR HIGH SKINNY WMN | B158: NIPPON SUPERSTRETCH | C158: MED AGED | D158: 8718602585017 | E158: 24 | F158: 1 | G158: 24040898PO063 | H158: Skinny
A159: 3301 CONTOUR HIGH SKINNY WMN | B159: NIPPON SUPERSTRETCH | C159: MED AGED | D159: 8718602585017 | E159: 24 | F159: 1 | G159: 24040898PO063 | H159: Skinny
A160: 3301 CONTOUR HIGH SKINNY WMN | B160: NIPPON SUPERSTRETCH | C160: MED AGED | D160: 8718602585017 | E160: 24 | F160: 1 | G160: 24040898PO063 | H160: Skinny
A161: 3301 CONTOUR HIGH SKINNY WMN | B161: NIPPON SUPERSTRETCH | C161: MED AGED | D161: 8718602585017 | E161: 24 | F161: 1 | G161: 24040898PO063 | H161: Skinny
A162: 3301 CONTOUR HIGH SKINNY WMN | B162: NIPPON SUPERSTRETCH | C162: MED AGED | D162: 8718602585017 | E162: 24 | F162: 1 | G162: 24040898PO063 | H162: Skinny
A163: 3301 CONTOUR HIGH SKINNY WMN | B163: NIPPON SUPERSTRETCH | C163: MED AGED | D163: 8718602585017 | E163: 24 | F163: 1 | G163: 24040898PO063 | H163: Skinny
A164: 3301 CONTOUR HIGH SKINNY WMN | B164: NIPPON SUPERSTRETCH | C164: MED AGED | D164: 8718602585017 | E164: 24 | F164: 1 | G164: 24040898PO063 | H164: Skinny
A165: 3301 CONTOUR HIGH SKINNY WMN | B165: NIPPON SUPERSTRETCH | C165: MED AGED | D165: 8718602585017 | E165: 24 | F165: 1 | G165: 24040898PO063 | H165: Skinny
A166: 3301 CONTOUR HIGH SKINNY WMN | B166: NIPPON SUPERSTRETCH | C166: MED AGED | D166: 8718602585017 | E166: 24 | F166: 1 | G166: 24040898PO063 | H166: Skinny
A167: 3301 CONTOUR HIGH SKINNY WMN | B167: NIPPON SUPERSTRETCH | C167: MED AGED | D167: 8718602585017 | E167: 24 | F167: 1 | G167: 24040898PO063 | H167: Skinny
A168: 3301 CONTOUR HIGH SKINNY WMN | B168: NIPPON SUPERSTRETCH | C168: MED AGED | D168: 8718602585017 | E168: 24 | F168: 1 | G168: 24040898PO063 | H168: Skinny
A169: 3301 CONTOUR HIGH SKINNY WMN | B169: NIPPON SUPERSTRETCH | C169: MED AGED | D169: 8718602585017 | E169: 24 | F169: 1 | G169: 24040898PO063 | H169: Skinny
A170: 3301 CONTOUR HIGH SKINNY WMN | B170: NIPPON SUPERSTRETCH | C170: MED AGED | D170: 8718602585017 | E170: 24 | F170: 1 | G170: 24040898PO063 | H170: Skinny
A171: 3301 CONTOUR HIGH SKINNY WMN | B171: NIPPON SUPERSTRETCH | C171: MED AGED | D171: 8718602585017 | E171: 24 | F171: 1 | G171: 24040898PO063 | H171: Skinny
A172: 3301 CONTOUR HIGH SKINNY WMN | B172: NIPPON SUPERSTRETCH | C172: MED AGED | D172: 8718602585017 | E172: 24 | F172: 1 | G172: 24040898PO063 | H172: Skinny
A173: 3301 CONTOUR HIGH SKINNY WMN | B173: NIPPON SUPERSTRETCH | C173: MED AGED | D173: 8718602585017 | E173: 24 | F173: 1 | G173: 24040898PO063 | H173: Skinny
A174: 3301 CONTOUR HIGH SKINNY WMN | B174: NIPPON SUPERSTRETCH | C174: MED AGED | D174: 8718602585017 | E174: 24 | F174: 1 | G174: 24040898PO063 | H174: Skinny
A175: 3301 CONTOUR HIGH SKINNY WMN | B175: NIPPON SUPERSTRETCH | C175: MED AGED | D175: 8718602585017 | E175: 24 | F175: 1 | G175: 24040898PO063 | H175: Skinny
A176: 3301 CONTOUR HIGH SKINNY WMN | B176: NIPPON SUPERSTRETCH | C176: MED AGED | D176: 8718602585017 | E176: 24 | F176: 1 | G176: 24040898PO063 | H176: Skinny
A177: 3301 CONTOUR HIGH SKINNY WMN | B177: NIPPON SUPERSTRETCH | C177: MED AGED | D177: 8718602585017 | E177: 24 | F177: 1 | G177: 24040898PO063 | H177: Skinny
A178: 3301 CONTOUR HIGH SKINNY WMN | B178: NIPPON SUPERSTRETCH | C178: MED AGED | D178: 8718602585017 | E178: 24 | F178: 1 | G178: 24040898PO063 | H178: Skinny
A179: 3301 CONTOUR HIGH SKINNY WMN | B179: NIPPON SUPERSTRETCH | C179: MED AGED | D179: 8718602585017 | E179: 24 | F179: 1 | G179: 24040898PO063 | H179: Skinny
A180: 3301 CONTOUR HIGH SKINNY WMN | B180: NIPPON SUPERSTRETCH | C180: MED AGED | D180: 8718602585017 | E180: 24 | F180: 1 | G180: 24040898PO063 | H180: Skinny
A181: 3301 CONTOUR HIGH SKINNY WMN | B181: NIPPON SUPERSTRETCH | C181: MED AGED | D181: 8718602585017 | E181: 24 | F181: 1 | G181: 24040898PO063 | H181: Skinny
A182: 3301 CONTOUR HIGH SKINNY WMN | B182: NIPPON SUPERSTRETCH | C182: MED AGED | D182: 8718602585017 | E182: 24 | F182: 1 | G182: 24040898PO063 | H182: Skinny
A183: 3301 CONTOUR HIGH SKINNY WMN | B183: NIPPON SUPERSTRETCH | C183: MED AGED | D183: 8718602585017 | E183: 24 | F183: 1 | G183: 24040898PO063 | H183: Skinny
A184: 3301 CONTOUR HIGH SKINNY WMN | B184: NIPPON SUPERSTRETCH | C184: MED AGED | D184: 8718602585017 | E184: 24 | F184: 1 | G184: 24040898PO063 | H184: Skinny
A185: 3301 CONTOUR HIGH SKINNY WMN | B185: VISOR STRETCH DENIM | C185: DARK AGED | D185: 8718602760162 | E185: 25 | F185: 1 | G185: 040898P007 | H185: Straight
A186: 3301 CONTOUR HIGH SKINNY WMN | B186: HABB WHITE SUPER STRETCH | C186: 3D RINSED | D186: 8718601971828 | E186: 25 | F186: 1 | G186: 040898P007 | H186: Slim
A187: 3301 CONTOUR HIGH SKINNY WMN | B187: HYTO BLACK SUPER STRETCH | C187: COBLER DIP WASH | D187: 8718601935301 | E187: 25 | F187: 1 | G187: 040898P008 | H187: Slim
A188: 3301 CONTOUR HIGH SKINNY WMN | B188: HYTO BLACK SUPER STRETCH | C188: COBLER DIP WASH | D188: 8718601935301 | E188: 25 | F188: 1 | G188: 040898P008 | H188: Slim
A189: 3301 CONTOUR HIGH SKINNY WMN | B189: HYTO BLACK SUPER STRETCH | C189: COBLER DIP WASH | D189: 8718601935370 | E189: 25 | F189: 1 | G189: 040898P008 | H189: Slim
A190: 3301 CONTOUR HIGH SKINNY WMN | B190: SCAAL GREY SUPER STRETCH | C190: DARK AGED | D190: 8718601605631 | E190: 25 | F190: 1 | G190: 040898P008 | H190: Slim
A191: 3301 CONTOUR HIGH SKINNY WMN | B191: BENWICK STRETCH DENIM | C191: DARK AGED | D191: 8718602605029 | E191: 25 | F191: 1 | G191: 040898P008 | H191: Skinny
A192: 3301 CONTOUR HIGH SKINNY WMN | B192: NIPPON SUPERSTRETCH | C192: MED AGED | D192: 8718602584911 | E192: 25 | F192: 1 | G192: 040898P062 | H192: Skinny
A193: 3301 CONTOUR HIGH SKINNY WMN | B193: NIPPON SUPERSTRETCH | C193: MED AGED | D193: 8718602584911 | E193: 25 | F193: 1 | G193: 040898P062 | H193: Skinny
A194: 3301 CONTOUR HIGH SKINNY WMN | B194: NIPPON SUPERSTRETCH | C194: MED AGED | D194: 8718602584911 | E194: 25 | F194: 1 | G194: 040898P062 | H194: Skinny
A195: 3301 CONTOUR HIGH SKINNY WMN | B195: NIPPON SUPERSTRETCH | C195: MED AGED | D195: 8718602584911 | E195: 25 | F195: 1 | G195: 040898P062 | H195: Skinny
A196: 3301 CONTOUR HIGH SKINNY WMN | B196: NIPPON SUPERSTRETCH | C196: MED AGED | D196: 8718602584911 | E196: 25 | F196: 1 | G196: 040898P062 | H196: Skinny
A197: 3301 CONTOUR HIGH SKINNY WMN | B197: NIPPON SUPERSTRETCH | C197: MED AGED | D197: 8718602584911 | E197: 25 | F197: 1 | G197: 040898P062 | H197: Skinny
A198: 3301 CONTOUR HIGH SKINNY WMN | B198: NIPPON SUPERSTRETCH | C198: MED AGED | D198: 8718602584911 | E198: 25 | F198: 1 | G198: 040898P062 | H198: Skinny
A199: 3301 CONTOUR HIGH SKINNY WMN | B199: NIPPON SUPERSTRETCH | C199: MED AGED | D199: 8718602584911 | E199: 25 | F199: 1 | G199: 040898P062 | H199: Skinny
A200: 3301 CONTOUR HIGH SKINNY WMN | B200: NIPPON SUPERSTRETCH | C200: MED AGED | D200: 8718602584911 | E200: 25 | F200: 1 | G200: 040898P062 | H200: Skinny
... 4300 more rows

Sheet OVERALL TOTAL
C1: 23 | D1: 24 | E1: 25 | F1: 26 | G1: 27 | H1: 28 | I1: 29 | J1: 30 | K1: 31 | L1: 32 | M1: 33 | N1: TOTAL
C3: 449 | D3: 1500 | E3: 2728 | F3: 2777 | G3: 2849 | H3: 3745 | I3: 3124 | J3: 1636 | K3: 808 | L3: 157 | M3: 177 | N3: =SUM(C3:M3) -> 19950
